{"text_format":"1","workbook":"xlsx","n_sheets":5,"sheets":["Конфігурація","Calculation","Belegung","легенда","Texts"],"not_rendered":{"charts":0,"images":4,"macros":1,"external_links":0,"defined_names":0,"comments":1,"pivot_tables":0},"unopened":[],"bounds":{"document_bytes":16777216,"sheet_cells":100000,"rows_first":2000,"rows_last":500,"rows_between":2000,"halvings":0,"cell_chars":16384,"cell_head_chars":4096},"cells_cut":0,"cells_raw":0,"read":"whole","date_system":"1900"}

{"sheet":"Конфігурація","index":0,"n_rows":46,"n_cols":16,"rows_kept":46,"cut":false,"hidden":false,"merged":[[1,7,1,8],[1,0,1,5],[12,0,12,5],[17,0,17,5],[3,0,3,1],[3,3,3,4],[5,0,5,1],[5,3,5,4],[9,0,9,1],[9,3,9,4],[10,3,10,4],[10,0,10,1],[14,0,14,1],[7,0,7,5],[14,3,14,4],[15,3,15,4],[15,0,15,1],[17,14,17,19],[29,14,29,19],[29,0,29,5],[19,3,19,4],[21,3,21,4],[21,0,21,1],[19,0,19,1],[28,3,28,4],[23,0,23,1],[1,11,3,19],[45,0,50,5],[43,15,43,21],[23,3,23,4],[25,0,25,1],[25,3,25,4],[27,0,27,1],[27,3,27,4],[33,0,33,1],[31,0,31,1],[33,3,33,4],[31,3,31,4],[35,0,35,1],[35,3,35,4],[37,0,37,3],[43,7,43,13]]}
[]
[{"$f":"IF(Texts!A41<>0,Texts!A41,Texts!#REF!)","v":"Теплогенератор eBUS"},null,null,null,null,null,null,{"$f":"IF(Texts!A5<>0,Texts!A5&\":\",Texts!#REF!&\":\")","v":"Мова:"},null,"Українська",{"$f":"IF(Texts!A103<>0,Texts!A103,Texts!#REF!)","v":"Конфігурація"}]
[]
[{"$f":"IF(AND(Calculation!A3=FALSE,Calculation!A5=FALSE,Calculation!A7=FALSE),Calculation!B1,\"-\")","v":"Звичайний теплогенератор"},null,null,{"$f":"IF(AND(Calculation!A1=FALSE,Calculation!A5=FALSE,Calculation!A7=FALSE),Calculation!B3,\"-\")","v":"geoTHERM 3 кВт"},null,null,null,null,null,null,{"$f":"IF(Texts!A104<>0,Texts!A104,Texts!#REF!)","v":"легенда"}]
[]
[{"$f":"IF(AND(Calculation!A1=FALSE,Calculation!A3=FALSE,Calculation!A7=FALSE),Calculation!B5,\"-\")","v":"Тепловий насос (див. коментар)"},null,null,{"$f":"IF(AND(Calculation!A1=FALSE,Calculation!A3=FALSE,Calculation!A5=FALSE),Calculation!B7,\"-\")","v":"Моноблок aroTHERM"},null,null,null,{"$f":"IF(Texts!A98<>0,Texts!A98,Texts!#REF!)","v":"Розташування підключень VR 71"},null,null,null,null,null,null,null,{"$f":"IF(Texts!A99<>0,Texts!A99,Texts!#REF!)","v":"Розташування підключень VR 70, адреса 1"}]
[]
[{"$f":"IF(Texts!A47<>0,Texts!A47,Texts!#REF!)","v":"Конфігурація системи"}]
[]
[{"$f":"IF(AND(Calculation!A5=TRUE,Calculation!G3=FALSE),Calculation!H1,IF(AND(Calculation!A7=TRUE,Calculation!G3=FALSE),Calculation!H1,IF(AND(Calculation!A3=TRUE,Calculation!D19=FALSE,Calculation!D21=FALSE,Calculation!G3=FALSE),Calculation!H1,\"-\")))","v":"-"},null,null,{"$f":"IF(AND(Calculation!A5=TRUE,Calculation!G1=FALSE,Calculation!H1),Calculation!H3,IF(OR(AND(Calculation!A7=TRUE,Calculation!G1=FALSE),AND(Calculation!A7=TRUE,Calculation!G1=FALSE,Calculation!G7=TRUE),AND(Calculation!A3=TRUE,Calculation!G1=FALSE,Calculation!D19=FALSE,Calculation!D21=FALSE)),Calculation!H3,\"-\"))","v":"-"}]
[{"$f":"IF(AND(Calculation!A7=TRUE,OR(Calculation!G1=TRUE,Calculation!G3=TRUE)),Calculation!H7,\"-\")","v":"-"}]
[]
[{"$f":"IF(Texts!A52<>0,Texts!A52,Texts!#REF!)","v":"Приготування гарячої води"}]
[]
[{"$f":"IF(AND(NOT(AND(Calculation!D1=TRUE,Конфігурація!D15=\"nur mit Zusatzheizgerät\")),Calculation!A5=TRUE,Calculation!G1=TRUE,Calculation!D15=FALSE),Calculation!E3,IF(AND(NOT(AND(Calculation!D1=TRUE,Конфігурація!D15=\"nur mit Zusatzheizgerät\")),Calculation!A7=TRUE,Calculation!G1=TRUE),Calculation!E3,IF(AND(Calculation!A1=TRUE,Calculation!D1<>TRUE,Calculation!D7<>TRUE,Calculation!D15<>TRUE),Calculation!E17,\"-\")))","v":"-"},null,null,{"$f":"IF(AND(Calculation!A1=TRUE,Calculation!D3=FALSE,Calculation!D7<>TRUE,Calculation!D15=FALSE),Calculation!E5,IF(AND(OR(Calculation!D19=TRUE,Calculation!D21=TRUE),Calculation!A3=TRUE,Calculation!D3=FALSE),Calculation!E9,IF(AND(Calculation!G1=TRUE,Calculation!D3=FALSE),Calculation!E9,IF(AND(Calculation!A7=TRUE,Calculation!G7=TRUE,Calculation!G3=TRUE,Calculation!D7<>TRUE,Calculation!D15=FALSE),Calculation!E11,IF(AND(Calculation!A5=TRUE,Calculation!G1=TRUE,Calculation!D3=TRUE,Calculation!D7<>TRUE),Calculation!H11,IF(AND(Calculation!A7=TRUE,Calculation!G1=TRUE,Calculation!D3=TRUE,Calculation!D7<>TRUE),Calculation!H11,\"-\"))))))","v":"-"}]
[null,null,null,{"$f":"IF(AND(Calculation!A1=TRUE,Calculation!D1<>TRUE,Calculation!D3<>TRUE,Calculation!D15<>TRUE),Calculation!E7,IF(AND(OR(Calculation!A5=TRUE,Calculation!A7=TRUE),Calculation!G1=TRUE,Calculation!D3=TRUE,Calculation!D1<>TRUE),Calculation!E7,IF(AND(Calculation!A5=TRUE,Calculation!G3=TRUE,Calculation!D1<>TRUE),Calculation!E13,IF(AND(OR(Calculation!A7=TRUE,Calculation!A3=TRUE),Calculation!G3=TRUE,Calculation!D1=FALSE,Calculation!D15=FALSE),Calculation!E13,\"-\"))))","v":"-"}]
[]
[{"$f":"IF(Texts!A63<>0,Texts!A63,Texts!#REF!)","v":"Кількість опалювальних контурів"}]
[]
[{"$f":"IF(ISERROR(VALUE(Calculation!$L$1)=\"-\"),\"-\",IF(AND(VALUE(Calculation!$L$1)<>\"-\",VALUE(Calculation!L1)<>16,VALUE(Calculation!L1)<>13,Calculation!A39=FALSE,Calculation!A25=FALSE,Calculation!A29=FALSE,Calculation!A45=FALSE,Calculation!A47=FALSE,Calculation!A49=FALSE,Calculation!A51=FALSE,Calculation!A53=FALSE,Calculation!A55=FALSE),Calculation!B23,\"-\"))","v":"-"},null,"",{"$f":"IF(ISERROR(VALUE(Calculation!$L$1)=\"-\"),\"-\",IF(AND(VALUE(Calculation!$L$1)<>\"-\",Calculation!A23=FALSE,Calculation!A39=FALSE,Calculation!A29=FALSE,Calculation!A45=FALSE,Calculation!A47=FALSE,Calculation!A49=FALSE,Calculation!A51=FALSE,Calculation!A53=FALSE,Calculation!A55=FALSE),Calculation!B25,\"-\"))","v":"-"}]
[]
[{"$f":"IF(ISERROR(VALUE(Calculation!$L$1)=\"-\"),\"-\",IF(AND(VALUE(Calculation!$L$1)<>\"-\",VALUE(Calculation!L1)<>6,VALUE(Calculation!L1)<>7,Calculation!A23=FALSE,Calculation!A25=FALSE,Calculation!A39=FALSE,Calculation!A45=FALSE,Calculation!A47=FALSE,Calculation!A49=FALSE,Calculation!A51=FALSE,Calculation!A53=FALSE,Calculation!A55=FALSE),Calculation!B29,\"-\"))","v":"-"},null,null,{"$f":"IF(ISERROR(VALUE(Calculation!$L$1)=\"-\"),\"-\",IF(AND(VALUE(Calculation!$L$1)<>\"-\",VALUE(Calculation!L1)<>6,VALUE(Calculation!L1)<>7,Calculation!A23=FALSE,Calculation!A25=FALSE,Calculation!A29=FALSE,Calculation!A45=FALSE,Calculation!A47=FALSE,Calculation!A49=FALSE,Calculation!A51=FALSE,Calculation!A53=FALSE,Calculation!A55=FALSE),Calculation!B39,\"-\"))","v":"-"}]
[]
[{"$f":"IF(ISERROR(VALUE(Calculation!$L$1)=\"-\"),\"-\",IF(AND(VALUE(Calculation!$L$1)<>\"-\",VALUE(Calculation!L1)<>6,VALUE(Calculation!L1)<>7,Calculation!A23=FALSE,Calculation!A25=FALSE,Calculation!A29=FALSE,Calculation!A39=FALSE,Calculation!A47=FALSE,Calculation!A49=FALSE,Calculation!A51=FALSE,Calculation!A53=FALSE,Calculation!A55=FALSE),Calculation!B45,\"-\"))","v":"-"},null,null,{"$f":"IF(ISERROR(VALUE(Calculation!$L$1)=\"-\"),\"-\",IF(AND(VALUE(Calculation!$L$1)<>\"-\",VALUE(Calculation!L1)<>6,VALUE(Calculation!L1)<>7,Calculation!A23=FALSE,Calculation!A25=FALSE,Calculation!A29=FALSE,Calculation!A45=FALSE,Calculation!A39=FALSE,Calculation!A49=FALSE,Calculation!A51=FALSE,Calculation!A53=FALSE,Calculation!A55=FALSE),Calculation!B47,\"-\"))","v":"-"}]
[]
[{"$f":"IF(ISERROR(VALUE(Calculation!$L$1)=\"-\"),\"-\",IF(AND(VALUE(Calculation!$L$1)<>\"-\",VALUE(Calculation!L1)<>6,VALUE(Calculation!L1)<>7,Calculation!A23=FALSE,Calculation!A25=FALSE,Calculation!A29=FALSE,Calculation!A45=FALSE,Calculation!A47=FALSE,Calculation!A39=FALSE,Calculation!A51=FALSE,Calculation!A53=FALSE,Calculation!A55=FALSE),Calculation!B49,\"-\"))","v":"-"},null,null,{"$f":"IF(ISERROR(VALUE(Calculation!$L$1)=\"-\"),\"-\",IF(AND(VALUE(Calculation!$L$1)<>\"-\",VALUE(Calculation!L1)<>6,VALUE(Calculation!L1)<>7,Calculation!A23=FALSE,Calculation!A25=FALSE,Calculation!A29=FALSE,Calculation!A45=FALSE,Calculation!A47=FALSE,Calculation!A49=FALSE,Calculation!A39=FALSE,Calculation!A53=FALSE,Calculation!A55=FALSE),Calculation!B51,\"-\"))","v":"-"}]
[]
[{"$f":"IF(ISERROR(VALUE(Calculation!$L$1)=\"-\"),\"-\",IF(AND(VALUE(Calculation!$L$1)<>\"-\",VALUE(Calculation!L1)<>6,VALUE(Calculation!L1)<>7,Calculation!A23=FALSE,Calculation!A25=FALSE,Calculation!A29=FALSE,Calculation!A45=FALSE,Calculation!A47=FALSE,Calculation!A49=FALSE,Calculation!A51=FALSE,Calculation!A39=FALSE,Calculation!A55=FALSE),Calculation!B53,\"-\"))","v":"-"},null,null,{"$f":"IF(ISERROR(VALUE(Calculation!$L$1)=\"-\"),\"-\",IF(AND(VALUE(Calculation!$L$1)<>\"-\",VALUE(Calculation!L1)<>6,VALUE(Calculation!L1)<>7,Calculation!A23=FALSE,Calculation!A25=FALSE,Calculation!A29=FALSE,Calculation!A45=FALSE,Calculation!A47=FALSE,Calculation!A49=FALSE,Calculation!A51=FALSE,Calculation!A53=FALSE,Calculation!A39=FALSE),Calculation!B55,\"-\"))","v":"-"}]
[]
[{"$f":"IF(Texts!A75<>0,Texts!A75,Texts!#REF!)","v":"Спеціальне обладнання"}]
[]
[{"$f":"IF(ISERROR(VALUE(Calculation!$L$1)=\"-\"),\"-\",IF(AND(OR(VALUE(Calculation!L1)=1,VALUE(Calculation!L1)=2,VALUE(Calculation!L1)=6,VALUE(Calculation!L1)=7,VALUE(Calculation!L1)=8,VALUE(Calculation!L1)=9,VALUE(Calculation!L1)=10,VALUE(Calculation!L1)=11,VALUE(Calculation!L1)=12,VALUE(Calculation!L1)=13,VALUE(Calculation!L1)=16,EXACT(Calculation!L1,\"11/16\")),(OR(Calculation!A23=TRUE,Calculation!A25=TRUE,Calculation!A29=TRUE,Calculation!A39=TRUE,Calculation!A45=TRUE,Calculation!A47=TRUE,Calculation!A49=TRUE,Calculation!A51=TRUE,Calculation!A51=TRUE,Calculation!A53=TRUE,Calculation!A55=TRUE)),Calculation!A31=FALSE,Calculation!A33=FALSE,Calculation!A27=FALSE,Calculation!D15=FALSE),Calculation!B57,\"-\"))","v":"-"},null,null,{"$f":"IF(ISERROR(VALUE(Calculation!$L$1)=\"-\"),\"-\",IF(AND(OR(VALUE(Calculation!L1)=1,VALUE(Calculation!L1)=2,VALUE(Calculation!L1)=8,VALUE(Calculation!L1)=11),(OR(Calculation!A23=TRUE,Calculation!A25=TRUE,Calculation!A29=TRUE,Calculation!A39=TRUE,Calculation!A45=TRUE,Calculation!A47=TRUE,Calculation!A49=TRUE,Calculation!A51=TRUE,Calculation!A51=TRUE,Calculation!A53=TRUE,Calculation!A55=TRUE)),Calculation!D1=FALSE,Calculation!D3=FALSE,Calculation!A57=FALSE,Calculation!A33=FALSE,Calculation!A27=FALSE),Calculation!B31,\"-\"))","v":"-"}]
[]
[{"$f":"IF(ISERROR(VALUE(Calculation!$L$1)=\"-\"),\"-\",IF(AND(VALUE(Calculation!L1)=2,(OR(Calculation!A23=TRUE,Calculation!A25=TRUE,Calculation!A29=TRUE,Calculation!A39=TRUE,Calculation!A45=TRUE,Calculation!A47=TRUE,Calculation!A49=TRUE,Calculation!A51=TRUE,Calculation!A51=TRUE,Calculation!A53=TRUE,Calculation!A55=TRUE)),Calculation!A31=FALSE,Calculation!A57=FALSE,Calculation!A27=FALSE),Calculation!B33,\"-\"))","v":"-"},null,null,{"$f":"IF(ISERROR(VALUE(Calculation!$L$1)=\"-\"),\"-\",IF(AND(OR(VALUE(Calculation!L1)=1,VALUE(Calculation!L1)=2,VALUE(Calculation!L1)=11,AND(VALUE(Calculation!L1)=8,Calculation!A23=FALSE),VALUE(Calculation!L1)=16,D44=\"6\"),(OR(Calculation!A23=TRUE,Calculation!A25=TRUE,Calculation!A29=TRUE,Calculation!A39=TRUE,Calculation!A45=TRUE,Calculation!A47=TRUE,Calculation!A49=TRUE,Calculation!A51=TRUE,Calculation!A51=TRUE,Calculation!A53=TRUE,Calculation!A55=TRUE)),Calculation!A31=FALSE,Calculation!A33=FALSE,Calculation!A57=FALSE,Calculation!D1=FALSE),Calculation!B27,\"-\"))","v":"-"}]
[]
[{"$f":"IF(AND(Calculation!A37=FALSE,OR(Calculation!A27=TRUE,Calculation!A31=TRUE,Calculation!A33=TRUE)),Calculation!B35,\"-\")","v":"-"},null,null,{"$f":"IF(OR(AND(Calculation!A35=FALSE,Calculation!A39=FALSE,Calculation!A45=FALSE,Calculation!A47=FALSE,Calculation!A49=FALSE,Calculation!A51=FALSE,Calculation!A53=FALSE,Calculation!A55=FALSE,Calculation!A31=TRUE),AND(Calculation!A35=FALSE,Calculation!A39=FALSE,Calculation!A45=FALSE,Calculation!A47=FALSE,Calculation!A49=FALSE,Calculation!A51=FALSE,Calculation!A53=FALSE,Calculation!A55=FALSE,Calculation!A33=TRUE),AND(Calculation!A35=FALSE,Calculation!A27=TRUE)),Calculation!B37,\"-\")","v":"-"}]
[]
[{"$f":"IF(Texts!A83<>0,Texts!A83,Texts!#REF!)","v":"Індикація налаштування регулятора і розташування підключень"}]
[]
[null,{"$f":"IF(Texts!A84<>0,Texts!A84,Texts!#REF!)","v":"Схема системи"},null,{"$f":"IF(Calculation!A43=TRUE,Calculation!L1,\"-\")","v":"-"},{"$f":"IF(AND(EXACT(Calculation!L1,\"11/16\"),Calculation!A43=TRUE),\"*\",\"\")","v":""}]
[]
[null,{"$f":"IF(Texts!A85<>0,Texts!A85,Texts!#REF!)","v":"Конфігурація VR 70"},null,{"$f":"IF(Calculation!A43=TRUE,Calculation!L3,\"-\")","v":"-"}]
[]
[null,{"$f":"IF(Texts!A91<>0,Texts!A91,Texts!#REF!)","v":"Конфігурація VR 71"},null,{"$f":"IF(Calculation!A43=TRUE,Calculation!L5,\"-\")","v":"-"},null,null,null,{"$f":"IF(Texts!A100<>0,Texts!A100,Texts!#REF!)","v":"Розташування підключень VR 70, адреса 2"},null,null,null,null,null,null,null,{"$f":"IF(Texts!A101<>0,Texts!A101,Texts!#REF!)","v":"Розташування підключень VR 70, адреса 3"}]
[]
[{"$f":"IF(AND(Calculation!D1=TRUE,Calculation!D3=TRUE),Calculation!H13,IF(AND(EXACT(Calculation!L1,\"11/16\"),Calculation!A43=TRUE),Calculation!K17,\"\"))","v":""}]

{"sheet":"Calculation","index":1,"n_rows":63,"n_cols":21,"rows_kept":63,"cut":false,"hidden":true,"merged":[]}
[false,{"$f":"IF(Texts!A42<>0,Texts!A42,Texts!#REF!)","v":"Звичайний теплогенератор"},null,false,{"$f":"IF(Texts!A57<>0,Texts!A57,Texts!#REF!)","v":"лише з теплогенератором"},null,false,{"$f":"IF(Texts!A48<>0,Texts!A48,Texts!#REF!)","v":"Гібридна система"},null,null,{"$f":"IF(Texts!A84<>0,Texts!A84,Texts!#REF!)","v":"Схема системи"},{"$f":"IF(AND(Calculation!A1=TRUE,OR(Calculation!D1=TRUE,Calculation!D3=TRUE,Calculation!A31=TRUE,Calculation!A27=TRUE)),\"1\",IF(AND(Calculation!A1=TRUE,Calculation!D7=TRUE,Calculation!A31=FALSE,Calculation!A27=FALSE),\"2\",IF(AND(Calculation!A5=TRUE,Calculation!D7=TRUE,Calculation!G3=TRUE,Calculation!D7=TRUE),\"8\",IF(AND(Calculation!A23=TRUE,Calculation!G1=TRUE,Calculation!A5=TRUE,Calculation!D3=FALSE),\"8\",IF(AND(Calculation!A5=TRUE,Calculation!G1=FALSE,Calculation!D7=FALSE,Calculation!G3=TRUE),\"8\",IF(AND(OR(Calculation!A3=TRUE,Calculation!A5=TRUE,Calculation!A7=TRUE),Calculation!G1=TRUE,Calculation!G7=FALSE,Calculation!D1=TRUE,Calculation!A23=TRUE,Calculation!D3=FALSE),\"8\",IF(AND(OR(Calculation!A3=TRUE,Calculation!A7=TRUE),Calculation!G1=FALSE,Calculation!G7=FALSE,Calculation!G3=TRUE,Calculation!D7=TRUE),\"8\",IF(AND(OR(Calculation!A3=TRUE,Calculation!A5=TRUE,Calculation!A7=TRUE),Calculation!G1=TRUE,Calculation!G7=FALSE,Calculation!D3=FALSE,Calculation!D1=TRUE,Calculation!A23=FALSE),\"9\",IF(AND(Calculation!A7=TRUE,Calculation!G3=TRUE,Calculation!D7=FALSE,Calculation!D1=TRUE),\"10\",IF(AND(Calculation!A7=TRUE,Calculation!G1=TRUE,Calculation!G7=TRUE,Calculation!D1=TRUE,Calculation!D3=FALSE),\"10\",IF(AND(OR(Calculation!A27=TRUE),Calculation!A7=TRUE,Calculation!G7=TRUE,Calculation!D7=TRUE,Calculation!G1=FALSE),\"16\",IF(AND(OR(Calculation!A25=TRUE,Calculation!A39=TRUE),Calculation!A7=TRUE,Calculation!G7=TRUE,Calculation!D7=TRUE,Calculation!G1=FALSE,Calculation!A31=TRUE),\"11\",IF(AND(Calculation!A7=TRUE,Calculation!G7=TRUE,Calculation!D7=TRUE,Calculation!G1=FALSE,Calculation!A57=FALSE),\"11\",IF(AND(Calculation!A7=TRUE,Calculation!G7=TRUE,Calculation!D7=TRUE,Calculation!G1=FALSE,Calculation!A57=TRUE),\"11/16\",IF(AND(OR(Calculation!A5=TRUE,Calculation!A7=TRUE),Calculation!G1=TRUE,Calculation!D3=TRUE,Calculation!G7=FALSE,Calculation!A27=FALSE,Calculation!D7=FALSE),\"12\",IF(AND(Calculation!A7=TRUE,Calculation!G7=TRUE,Calculation!D3=TRUE,Calculation!A27=FALSE,Calculation!D1=TRUE),\"13\",IF(AND(OR(Calculation!A5=TRUE,Calculation!A7=TRUE,Calculation!A27=TRUE),Calculation!G1=TRUE,Calculation!D3=TRUE,Calculation!D7=TRUE,Calculation!G7=FALSE),\"16\",IF(AND(Calculation!A7=TRUE,Calculation!G7=TRUE,Calculation!D7=TRUE,Calculation!D3=TRUE),\"16\",\"-\"))))))))))))))))))","v":"-"}]
[]
[false,{"$f":"IF(Texts!A43<>0,Texts!A43,Texts!#REF!)","v":"geoTHERM 3 кВт"},null,false,{"$f":"IF(Texts!A61<>0,Texts!A61,Texts!#REF!)","v":"з тепловим насосом і опалювальним приладом"},null,false,{"$f":"IF(Texts!A49<>0,Texts!A49,Texts!#REF!)","v":"Моноенергетична система"},null,null,{"$f":"IF(Texts!A85<>0,Texts!A85,Texts!#REF!)","v":"Конфігурація VR 70"},{"$f":"IF(AND(Calculation!A57=TRUE,Calculation!A23=TRUE),Calculation!K21,IF(AND(Calculation!A57=TRUE,Calculation!A25=TRUE),\"1\",IF(OR(Calculation!A45=TRUE,Calculation!A47=TRUE),Calculation!M21,IF(OR(Calculation!A49=TRUE,Calculation!A51=TRUE),Calculation!N21,IF(OR(Calculation!A53=TRUE,Calculation!A55=TRUE),Calculation!O21,Calculation!K21)))))","v":"без VR 70"}]
[]
[false,{"$f":"IF(Texts!A44<>0,Texts!A44,Texts!#REF!)","v":"Тепловий насос (див. коментар)"},null,null,{"$f":"IF(Texts!A54<>0,Texts!A54,Texts!#REF!)","v":"Регулювання через теплогенератор"},null,null,null,null,null,{"$f":"IF(Texts!A91<>0,Texts!A91,Texts!#REF!)","v":"Конфігурація VR 71"},{"$f":"IF(AND(OR(Calculation!A31=TRUE,Calculation!A33),OR(Calculation!A23,Calculation!A25,Calculation!A29,Calculation!A39,Calculation!A45,Calculation!A47,Calculation!A49,Calculation!A51,Calculation!A53,Calculation!A55)*AND(Calculation!A37=TRUE)),\"1\",IF(AND(OR(Calculation!A31=TRUE,Calculation!A33),OR(Calculation!A23,Calculation!A25,Calculation!A29,Calculation!A31,Calculation!A33,Calculation!A39,Calculation!A45,Calculation!A47,Calculation!A49,Calculation!A51,Calculation!A53,Calculation!A55)),\"2\",IF(AND(Calculation!A27=TRUE,OR(Calculation!A23,Calculation!A25,Calculation!A29,Calculation!A39,Calculation!A45,Calculation!A47,Calculation!A49,Calculation!A51,Calculation!A53,Calculation!A55,Calculation!A35,Calculation!A37)),\"6\",IF(AND(Calculation!A57=TRUE,Calculation!A23=FALSE,Calculation!A25=FALSE,OR(Calculation!A29,Calculation!A39,Calculation!A45,Calculation!A47,Calculation!A49,Calculation!A51,Calculation!A53,Calculation!A55,Calculation!A57)),\"3\",Calculation!K37))))","v":"без VR 71"}]
[]
[false,{"$f":"IF(Texts!A45<>0,Texts!A45,Texts!#REF!)","v":"Моноблок aroTHERM"},null,false,{"$f":"IF(Texts!A55<>0,Texts!A55,Texts!#REF!)","v":"Регулювання через VRC 720"},null,false,{"$f":"IF(Texts!A50<>0,Texts!A50,Texts!#REF!)","v":"Розділення системи з модулем WT"},null,null,{"$f":"IF(Texts!A52<>0,Texts!A52,Texts!#REF!)","v":"Приготування гарячої води"},null,null,{"$f":"IF(Texts!A63<>0,Texts!A63,Texts!#REF!)","v":"Кількість опалювальних контурів"}]
[]
[null,null,null,null,{"$f":"IF(Texts!A59<>0,Texts!A59,Texts!#REF!)","v":"лише з додатковим опалювальним приладом"},null,null,null,null,null,{"$f":"IF(Texts!A47<>0,Texts!A47,Texts!#REF!)","v":"Конфігурація системи"},null,null,{"$f":"IF(Texts!A75<>0,Texts!A75,Texts!#REF!)","v":"Спеціальне обладнання"}]
[]
[null,null,null,null,{"$f":"IF(Texts!A58<>0,Texts!A58,Texts!#REF!)","v":"лише з тепловим насосом"},null,null,{"$f":"IF(Texts!A56<>0,Texts!A56,Texts!#REF!)","v":"Регулювання частково через опалювальний прилад*"},null,null,{"$f":"IF(Texts!A41<>0,Texts!A41,Texts!#REF!)","v":"Теплогенератор eBUS"}]
[]
[null,null,null,null,{"$f":"IF(Texts!A60<>0,Texts!A60,Texts!#REF!)","v":"з ТН і додатковим нагрівачем"},null,null,{"$f":"IF(Texts!A94<>0,Texts!A94,Texts!#REF!)","v":"*Регулятор виконує регулювання завантаження накопичувача для теплового насоса у нижній ділянці накопичувача гарячої води. Опалювальний прилад отримує від регулятора дозвіл для верхньої ділянки накопичувача і самостійно регулює завантаження накопичувача цієї ділянки. Це також означає, що до опалювального приладу повинен бути підключений датчик температури накопичувача."},null,null,{"$f":"IF(Texts!A97<>0,Texts!A97,Texts!#REF!)","v":"ТІЛЬКИ ДЛЯ ВНУТРІШНЬОГО ВИКОРИСТАННЯ"}]
[]
[null,null,null,null,null,null,null,null,null,null,{"$f":"IF(Texts!A83<>0,Texts!A83,Texts!#REF!)","v":"Індикація налаштування регулятора і розташування підключень"}]
[]
[null,null,null,null,{"$f":"IF(Texts!A53<>0,Texts!A53,Texts!#REF!)","v":"гаряча вода відсутня"},null,null,null,null,null,{"$f":"IF(Texts!A95<>0,Texts!A95,Texts!#REF!)","v":"* 11 = для додаткового нагрівання потрібен насос теплового насоса/\n   16 = для додаткового нагрівання потрібен насос модуля WT"}]
[]
[]
[]
[null,null,null,null,null,null,null,{"$f":"IF(Texts!A100<>0,Texts!A100,Texts!#REF!)","v":"Розташування підключень VR 70, адреса 2"},{"$f":"IF(Texts!A99<>0,Texts!A99,Texts!#REF!)","v":"Розташування підключень VR 70, адреса 1"},null,{"$f":"IF(Texts!A86<>0,Texts!A86,Texts!#REF!)","v":"без VR 70"},{"$f":"IF(Texts!A87<>0,Texts!A87,Texts!#REF!)","v":"VR 70 не потрібний"},{"$f":"IF(Texts!A88<>0,Texts!A88,Texts!#REF!)","v":"1 x VR 70"},{"$f":"IF(Texts!A89<>0,Texts!A89,Texts!#REF!)","v":"2 x VR 70"},{"$f":"IF(Texts!A90<>0,Texts!A90,Texts!#REF!)","v":"3 x VR 70"}]
[null,null,null,null,null,null,null,{"$f":"IF(Texts!A101<>0,Texts!A101,Texts!#REF!)","v":"Розташування підключень VR 70, адреса 3"}]
[false,{"$f":"IF(Texts!A64<>0,Texts!A64,Texts!#REF!)","v":"1 прямий опалювальний контур"},null,null,null,null,null,null,null,1,2,3,4,5,6,"1 x VR 70","2 x VR 70","3 x VR 70",10,11,12]
[null,null,null,null,null,null,null,null,"R1","HC1P",null,null,null,null,null,"HC4P","HC6P","HC8P"]
[false,{"$f":"IF(Texts!A65<>0,Texts!A65,Texts!#REF!)","v":"1 прям. і 1 зміш. опалювальний контур"},null,null,null,null,null,null,"R2","HC2P",null,null,null,null,null,"HC5P","HC7P","HC9P"]
[null,null,null,null,null,null,null,null,"R3/R4","MA",null,null,null,null,null,"HC4op/HC4cl","HC6op/HC6cl","HC8op/HC8cl"]
[false,{"$f":"IF(Texts!A79<>0,Texts!A79,Texts!#REF!)","v":"allSTOR"},null,null,null,null,null,null,"R5/R6","HC2op/HC2cl",null,null,null,null,null,"HC5op/HC5cl","HC7op/HC7cl","HC9op/HC9cl"]
[]
[false,{"$f":"IF(Texts!A66<>0,Texts!A66,Texts!#REF!)","v":"2 змішані опалювальні контури"},null,null,null,null,null,null,"S1","DHW1/BufBt",null,null,null,null,null,"SYSFlow","SYSFlow","SYSFlow"]
[null,null,null,null,null,null,null,null,"S2","DEM1",null,null,null,null,null,"DEM4","DEM6","DEM8"]
[false,{"$f":"IF(Texts!A77<>0,Texts!A77,Texts!#REF!)","v":"Приготування гарячої води від геліоустановки"},null,null,null,null,null,null,"S3","DEM2",null,null,null,null,null,"DEM5","DEM7","DEM9"]
[null,null,null,null,null,null,null,null,"S4","-",null,null,null,null,null,"-","-","-"]
[false,{"$f":"IF(Texts!A78<>0,Texts!A78,Texts!#REF!)","v":"Підтримка опалення від геліосистеми"},null,null,null,null,null,null,"S5","SysFlow/BufTop",null,null,null,null,null,"FS4","FS6","FS8"]
[null,null,null,null,null,null,null,null,"S6","FS2",null,null,null,null,null,"FS5","FS7","FS9"]
[false,{"$f":"IF(Texts!A80<>0,Texts!A80,Texts!#REF!)","v":"1 Геліонакопичувач"},null,null,null,null,null,null,"S7","-",null,null,null,null,null,"-","-","-"]
[]
[false,{"$f":"IF(Texts!A81<>0,Texts!A81,Texts!#REF!)","v":"2 Геліонакопичувач"},null,null,null,null,null,null,{"$f":"IF(Texts!A98<>0,Texts!A98,Texts!#REF!)","v":"Розташування підключень VR 71"},null,{"$f":"IF(Texts!A92<>0,Texts!A92,Texts!#REF!)","v":"без VR 71"},{"$f":"IF(Texts!A93<>0,Texts!A93,Texts!#REF!)","v":"VR 71 не потрібний"}]
[]
[false,{"$f":"IF(Texts!A67<>0,Texts!A67,Texts!#REF!)","v":"3 змішані опалювальні контури"},null,null,null,null,null,null,null,1,2,3,4,5,6,7,8,9,10]
[null,null,null,null,null,null,null,null,"R01","HC1P","HC1P","HC1P",null,null,"HC1P"]
[null,null,null,null,null,null,null,null,"R02","HC2P","HC2P","HC2P",null,null,"HC2P"]
[null,null,null,null,null,null,null,null,"R03","UVSolar","HC3P","HC3P",null,null,"HC3P"]
[false,"Einstellung anzeigen",null,null,null,null,null,null,"R04","MA","MA","MA",null,null,"MA"]
[null,null,null,null,null,null,null,null,"R05","COLP1","COLP1","-",null,null,"UVSolar"]
[false,{"$f":"IF(Texts!A68<>0,Texts!A68,Texts!#REF!)","v":"4 змішані опалювальні контури"},null,null,null,null,null,null,"R06","LP/3WV","LP/3WV","LP/3WV",null,null,"LP/3WV"]
[null,null,null,null,null,null,null,null,"R07/08","HC1op/HC1cl","HC1op/HC1cl","HC1op/HC1cl",null,null,"HC1op/HC1cl"]
[false,{"$f":"IF(Texts!A69<>0,Texts!A69,Texts!#REF!)","v":"5 змішаних опалювальних контурів"},null,null,null,null,null,null,"R09/10","HC2op/HC2cl","HC2op/HC2cl","HC2op/HC2cl",null,null,"HC2op/HC2cl"]
[null,null,null,null,null,null,null,null,"R11/12","-","HC3op/HC3cl","HC3op/HC3cl",null,null,"HC3op/HC3cl"]
[false,{"$f":"IF(Texts!A70<>0,Texts!A70,Texts!#REF!)","v":"6 змішаних опалювальних контурів"},null,null,null,null,null,null,"R13","-","-","-",null,null,"-"]
[]
[false,{"$f":"IF(Texts!A71<>0,Texts!A71,Texts!#REF!)","v":"7 змішаних опалювальних контурів"},null,null,null,null,null,null,"S01","SYSFlow","SYSFlow","SysFlow/BufTop",null,null,"SYSFlow"]
[null,null,null,null,null,null,null,null,"S02","FS1","FS1","FS1",null,null,"FS1"]
[false,{"$f":"IF(Texts!A72<>0,Texts!A72,Texts!#REF!)","v":"8 змішаних опалювальних контурів"},null,null,null,null,null,null,"S03","FS2","FS2","FS2",null,null,"FS2"]
[null,null,null,null,null,null,null,null,"S04","DHWBt2","FS3","FS3",null,null,"FS3"]
[false,{"$f":"IF(Texts!A73<>0,Texts!A73,Texts!#REF!)","v":"9 змішаних опалювальних контурів"},null,null,null,null,null,null,"S05","DHWTop1","DHWTop","BufBt",null,null,"BufTopCH"]
[null,null,null,null,null,null,null,null,"S06","DHWBt1","DHWBt","DEM1",null,null,"BufBtCH"]
[false,{"$f":"IF(Texts!A76<>0,Texts!A76,Texts!#REF!)","v":"немає"},null,null,null,null,null,null,"S07","COL1","COL1","DEM2",null,null,"BufTopDHW"]
[null,null,null,null,null,null,null,null,"S08","yield","yield","DEM3",null,null,"BufBtDHW"]
[null,null,null,null,null,null,null,null,"S09","DEM2","-","DHW1",null,null,"DEM1"]
[null,null,null,null,null,null,null,null,"S10","TD1","TD1","-",null,null,"DEM2"]
[null,null,null,null,null,null,null,null,"S11","TD2","TD2","-",null,null,"DEM3"]
[null,null,null,null,null,null,null,null,"S12","PWM1","PWM1","-",null,null,"DHWBt2"]
[null,null,null,null,null,null,null,null,"S13","-","-","-",null,null,"-"]

{"sheet":"Belegung","index":2,"n_rows":29,"n_cols":15,"rows_kept":29,"cut":false,"hidden":true,"merged":[[0,8,0,14],[20,0,20,6],[0,0,0,6],[10,0,10,6]]}
[{"$f":"Calculation!I21","v":"Розташування підключень VR 70, адреса 1"},null,null,null,null,null,null,null,{"$f":"Calculation!I37","v":"Розташування підключень VR 71"}]
[]
["R1",null,{"$f":"IF(ISERROR(OR(Конфігурація!D42=\"1\")),\"-\",IF(OR(Конфігурація!D42=\"1\"),VLOOKUP(A3,Calculation!$I$24:$UY$35,VALUE(Calculation!L$3)+1,TRUE),IF(OR(Конфігурація!D42=\"1 x VR 70\",Конфігурація!D42=\"2 x VR 70\",Конфігурація!D42=\"3 x VR 70\"),Calculation!P24,\"-\")))","v":"-"},null,"S1",null,{"$f":"IF(ISERROR(OR(Конфігурація!D42=\"1\")),\"-\",IF(OR(Конфігурація!D42=\"1\"),VLOOKUP(E3,Calculation!$I$24:$UY$35,VALUE(Calculation!L$3)+1,TRUE),IF(OR(Конфігурація!D42=\"1 x VR 70\",Конфігурація!D42=\"2 x VR 70\",Конфігурація!D42=\"3 x VR 70\"),\"-\",\"-\")))","v":"-"},null,"R01",null,{"$f":"IF(ISERROR(VLOOKUP(I3,Calculation!$I$40:$T$78,VALUE(Конфігурація!D44)+1,TRUE)),\"-\",VLOOKUP(I3,Calculation!$I$40:$T$78,VALUE(Конфігурація!D44)+1,TRUE))","v":"-"},null,"S01",null,{"$f":"IF(ISERROR(VLOOKUP(M3,Calculation!$I$40:$T$78,VALUE(Конфігурація!D44)+1,TRUE)),\"-\",VLOOKUP(M3,Calculation!$I$40:$T$78,VALUE(Конфігурація!D44)+1,TRUE))","v":"-"}]
["R2",null,{"$f":"IF(ISERROR(OR(Конфігурація!D42=\"1\")),\"-\",IF(OR(Конфігурація!D42=\"1\"),VLOOKUP(A4,Calculation!$I$24:$UY$35,VALUE(Calculation!L$3)+1,TRUE),IF(OR(Конфігурація!D42=\"1 x VR 70\",Конфігурація!D42=\"2 x VR 70\",Конфігурація!D42=\"3 x VR 70\"),Calculation!P25,\"-\")))","v":"-"},null,"S2",null,{"$f":"IF(ISERROR(OR(Конфігурація!D42=\"1\")),\"-\",IF(OR(Конфігурація!D42=\"1\"),VLOOKUP(E4,Calculation!$I$24:$UY$35,VALUE(Calculation!L$3)+1,TRUE),IF(OR(Конфігурація!D42=\"1 x VR 70\",Конфігурація!D42=\"2 x VR 70\",Конфігурація!D42=\"3 x VR 70\"),Calculation!P30,\"-\")))","v":"-"},null,"R02",null,{"$f":"IF(ISERROR(VLOOKUP(I4,Calculation!$I$40:$T$78,VALUE(Конфігурація!D44)+1,TRUE)),\"-\",VLOOKUP(I4,Calculation!$I$40:$T$78,VALUE(Конфігурація!D44)+1,TRUE))","v":"-"},null,"S02",null,{"$f":"IF(ISERROR(VLOOKUP(M4,Calculation!$I$40:$T$78,VALUE(Конфігурація!D44)+1,TRUE)),\"-\",VLOOKUP(M4,Calculation!$I$40:$T$78,VALUE(Конфігурація!D44)+1,TRUE))","v":"-"}]
["R3/R4",null,{"$f":"IF(ISERROR(OR(Конфігурація!D42=\"1\")),\"-\",IF(OR(Конфігурація!D42=\"1\"),VLOOKUP(A5,Calculation!$I$24:$UY$35,VALUE(Calculation!L$3)+1,TRUE),IF(OR(Конфігурація!D42=\"1 x VR 70\",Конфігурація!D42=\"2 x VR 70\",Конфігурація!D42=\"3 x VR 70\"),Calculation!P26,\"-\")))","v":"-"},null,"S3",null,{"$f":"IF(ISERROR(OR(Конфігурація!D42=\"1\")),\"-\",IF(OR(Конфігурація!D42=\"1\"),VLOOKUP(E5,Calculation!$I$24:$UY$35,VALUE(Calculation!L$3)+1,TRUE),IF(OR(Конфігурація!D42=\"1 x VR 70\",Конфігурація!D42=\"2 x VR 70\",Конфігурація!D42=\"3 x VR 70\"),Calculation!P31,\"-\")))","v":"-"},null,"R03",null,{"$f":"IF(ISERROR(VLOOKUP(I5,Calculation!$I$40:$T$78,VALUE(Конфігурація!D44)+1,TRUE)),\"-\",VLOOKUP(I5,Calculation!$I$40:$T$78,VALUE(Конфігурація!D44)+1,TRUE))","v":"-"},null,"S03",null,{"$f":"IF(ISERROR(VLOOKUP(M5,Calculation!$I$40:$T$78,VALUE(Конфігурація!D44)+1,TRUE)),\"-\",VLOOKUP(M5,Calculation!$I$40:$T$78,VALUE(Конфігурація!D44)+1,TRUE))","v":"-"}]
["R5/R6",null,{"$f":"IF(ISERROR(OR(Конфігурація!D42=\"1\")),\"-\",IF(OR(Конфігурація!D42=\"1\"),VLOOKUP(A6,Calculation!$I$24:$UY$35,VALUE(Calculation!L$3)+1,TRUE),IF(OR(Конфігурація!D42=\"1 x VR 70\",Конфігурація!D42=\"2 x VR 70\",Конфігурація!D42=\"3 x VR 70\"),Calculation!P27,\"-\")))","v":"-"},null,"S4",null,{"$f":"IF(ISERROR(OR(Конфігурація!D42=\"1\")),\"-\",IF(OR(Конфігурація!D42=\"1\"),VLOOKUP(E6,Calculation!$I$24:$UY$35,VALUE(Calculation!L$3)+1,TRUE),IF(OR(Конфігурація!D42=\"1 x VR 70\",Конфігурація!D42=\"2 x VR 70\",Конфігурація!D42=\"3 x VR 70\"),Calculation!P32,\"-\")))","v":"-"},null,"R04",null,{"$f":"IF(ISERROR(VLOOKUP(I6,Calculation!$I$40:$T$78,VALUE(Конфігурація!D44)+1,TRUE)),\"-\",VLOOKUP(I6,Calculation!$I$40:$T$78,VALUE(Конфігурація!D44)+1,TRUE))","v":"-"},null,"S04",null,{"$f":"IF(ISERROR(VLOOKUP(M6,Calculation!$I$40:$T$78,VALUE(Конфігурація!D44)+1,TRUE)),\"-\",VLOOKUP(M6,Calculation!$I$40:$T$78,VALUE(Конфігурація!D44)+1,TRUE))","v":"-"}]
[null,null,null,null,"S5",null,{"$f":"IF(ISERROR(OR(Конфігурація!D42=\"1\")),\"-\",IF(OR(Конфігурація!D42=\"1\"),VLOOKUP(E7,Calculation!$I$24:$UY$35,VALUE(Calculation!L$3)+1,TRUE),IF(OR(Конфігурація!D42=\"1 x VR 70\",Конфігурація!D42=\"2 x VR 70\",Конфігурація!D42=\"3 x VR 70\"),Calculation!P33,\"-\")))","v":"-"},null,"R05",null,{"$f":"IF(ISERROR(VLOOKUP(I7,Calculation!$I$40:$T$78,VALUE(Конфігурація!D44)+1,TRUE)),\"-\",VLOOKUP(I7,Calculation!$I$40:$T$78,VALUE(Конфігурація!D44)+1,TRUE))","v":"-"},null,"S05",null,{"$f":"IF(ISERROR(VLOOKUP(M7,Calculation!$I$40:$T$78,VALUE(Конфігурація!D44)+1,TRUE)),\"-\",VLOOKUP(M7,Calculation!$I$40:$T$78,VALUE(Конфігурація!D44)+1,TRUE))","v":"-"}]
[null,null,null,null,"S6",null,{"$f":"IF(ISERROR(OR(Конфігурація!D42=\"1\")),\"-\",IF(OR(Конфігурація!D42=\"1\"),VLOOKUP(E8,Calculation!$I$24:$UY$35,VALUE(Calculation!L$3)+1,TRUE),IF(OR(Конфігурація!D42=\"1 x VR 70\",Конфігурація!D42=\"2 x VR 70\",Конфігурація!D42=\"3 x VR 70\"),Calculation!P34,\"-\")))","v":"-"},null,"R06",null,{"$f":"IF(ISERROR(VLOOKUP(I8,Calculation!$I$40:$T$78,VALUE(Конфігурація!D44)+1,TRUE)),\"-\",VLOOKUP(I8,Calculation!$I$40:$T$78,VALUE(Конфігурація!D44)+1,TRUE))","v":"-"},null,"S06",null,{"$f":"IF(ISERROR(VLOOKUP(M8,Calculation!$I$40:$T$78,VALUE(Конфігурація!D44)+1,TRUE)),\"-\",VLOOKUP(M8,Calculation!$I$40:$T$78,VALUE(Конфігурація!D44)+1,TRUE))","v":"-"}]
[null,null,null,null,"S7",null,{"$f":"IF(ISERROR(OR(Конфігурація!D42=\"1\")),\"-\",IF(OR(Конфігурація!D42=\"1\"),VLOOKUP(E9,Calculation!$I$24:$UY$35,VALUE(Calculation!L$3)+1,TRUE),IF(OR(Конфігурація!D42=\"1 x VR 70\",Конфігурація!D42=\"2 x VR 70\",Конфігурація!D42=\"3 x VR 70\"),Calculation!P35,\"-\")))","v":"-"},null,"R07/08",null,{"$f":"IF(ISERROR(VLOOKUP(I9,Calculation!$I$40:$T$78,VALUE(Конфігурація!D44)+1,TRUE)),\"-\",VLOOKUP(I9,Calculation!$I$40:$T$78,VALUE(Конфігурація!D44)+1,TRUE))","v":"-"},null,"S07",null,{"$f":"IF(ISERROR(VLOOKUP(M9,Calculation!$I$40:$T$78,VALUE(Конфігурація!D44)+1,TRUE)),\"-\",VLOOKUP(M9,Calculation!$I$40:$T$78,VALUE(Конфігурація!D44)+1,TRUE))","v":"-"}]
[null,null,null,null,null,null,null,null,"R09/10",null,{"$f":"IF(ISERROR(VLOOKUP(I10,Calculation!$I$40:$T$78,VALUE(Конфігурація!D44)+1,TRUE)),\"-\",VLOOKUP(I10,Calculation!$I$40:$T$78,VALUE(Конфігурація!D44)+1,TRUE))","v":"-"},null,"S08",null,{"$f":"IF(ISERROR(VLOOKUP(M10,Calculation!$I$40:$T$78,VALUE(Конфігурація!D44)+1,TRUE)),\"-\",VLOOKUP(M10,Calculation!$I$40:$T$78,VALUE(Конфігурація!D44)+1,TRUE))","v":"-"}]
[{"$f":"Calculation!H21","v":"Розташування підключень VR 70, адреса 2"},null,null,null,null,null,null,null,"R11/12",null,{"$f":"IF(ISERROR(VLOOKUP(I11,Calculation!$I$40:$T$78,VALUE(Конфігурація!D44)+1,TRUE)),\"-\",VLOOKUP(I11,Calculation!$I$40:$T$78,VALUE(Конфігурація!D44)+1,TRUE))","v":"-"},null,"S09",null,{"$f":"IF(ISERROR(VLOOKUP(M11,Calculation!$I$40:$T$78,VALUE(Конфігурація!D44)+1,TRUE)),\"-\",VLOOKUP(M11,Calculation!$I$40:$T$78,VALUE(Конфігурація!D44)+1,TRUE))","v":"-"}]
[null,null,null,null,null,null,null,null,"R13",null,{"$f":"IF(ISERROR(VLOOKUP(I12,Calculation!$I$40:$T$78,VALUE(Конфігурація!D44)+1,TRUE)),\"-\",VLOOKUP(I12,Calculation!$I$40:$T$78,VALUE(Конфігурація!D44)+1,TRUE))","v":"-"},null,"S10",null,{"$f":"IF(ISERROR(VLOOKUP(M12,Calculation!$I$40:$T$78,VALUE(Конфігурація!D44)+1,TRUE)),\"-\",VLOOKUP(M12,Calculation!$I$40:$T$78,VALUE(Конфігурація!D44)+1,TRUE))","v":"-"}]
["R1",null,{"$f":"IF(ISERROR(OR(Конфігурація!D42=\"1\")),\"-\",IF(OR(Конфігурація!D42=\"2 x VR 70\",Конфігурація!D42=\"3 x VR 70\"),Calculation!Q24,\"-\"))","v":"-"},null,"S1",null,{"$f":"IF(ISERROR(OR(Конфігурація!D42=\"1\")),\"-\",IF(OR(Конфігурація!D42=\"2 x VR 70\",Конфігурація!D42=\"3 x VR 70\"),\"-\",\"-\"))","v":"-"},null,null,null,null,null,"S11",null,{"$f":"IF(ISERROR(VLOOKUP(M13,Calculation!$I$40:$T$78,VALUE(Конфігурація!D44)+1,TRUE)),\"-\",VLOOKUP(M13,Calculation!$I$40:$T$78,VALUE(Конфігурація!D44)+1,TRUE))","v":"-"}]
["R2",null,{"$f":"IF(ISERROR(OR(Конфігурація!D42=\"1\")),\"-\",IF(OR(Конфігурація!D42=\"2 x VR 70\",Конфігурація!D42=\"3 x VR 70\"),Calculation!Q25,\"-\"))","v":"-"},null,"S2",null,{"$f":"IF(ISERROR(OR(Конфігурація!D42=\"1\")),\"-\",IF(OR(Конфігурація!D42=\"2 x VR 70\",Конфігурація!D42=\"3 x VR 70\"),Calculation!Q30,\"-\"))","v":"-"},null,null,null,null,null,"S12",null,{"$f":"IF(ISERROR(VLOOKUP(M14,Calculation!$I$40:$T$78,VALUE(Конфігурація!D44)+1,TRUE)),\"-\",VLOOKUP(M14,Calculation!$I$40:$T$78,VALUE(Конфігурація!D44)+1,TRUE))","v":"-"}]
["R3/R4",null,{"$f":"IF(ISERROR(OR(Конфігурація!D42=\"1\")),\"-\",IF(OR(Конфігурація!D42=\"2 x VR 70\",Конфігурація!D42=\"3 x VR 70\"),Calculation!Q26,\"-\"))","v":"-"},null,"S3",null,{"$f":"IF(ISERROR(OR(Конфігурація!D42=\"1\")),\"-\",IF(OR(Конфігурація!D42=\"2 x VR 70\",Конфігурація!D42=\"3 x VR 70\"),Calculation!Q31,\"-\"))","v":"-"},null,null,null,null,null,"S13",null,{"$f":"IF(ISERROR(VLOOKUP(M15,Calculation!$I$40:$T$78,VALUE(Конфігурація!D44)+1,TRUE)),\"-\",VLOOKUP(M15,Calculation!$I$40:$T$78,VALUE(Конфігурація!D44)+1,TRUE))","v":"-"}]
["R5/R6",null,{"$f":"IF(ISERROR(OR(Конфігурація!D42=\"1\")),\"-\",IF(OR(Конфігурація!D42=\"2 x VR 70\",Конфігурація!D42=\"3 x VR 70\"),Calculation!Q27,\"-\"))","v":"-"},null,"S4",null,{"$f":"IF(ISERROR(OR(Конфігурація!D42=\"1\")),\"-\",IF(OR(Конфігурація!D42=\"2 x VR 70\",Конфігурація!D42=\"3 x VR 70\"),Calculation!Q32,\"-\"))","v":"-"}]
[null,null,null,null,"S5",null,{"$f":"IF(ISERROR(OR(Конфігурація!D42=\"1\")),\"-\",IF(OR(Конфігурація!D42=\"2 x VR 70\",Конфігурація!D42=\"3 x VR 70\"),Calculation!Q33,\"-\"))","v":"-"}]
[null,null,null,null,"S6",null,{"$f":"IF(ISERROR(OR(Конфігурація!D42=\"1\")),\"-\",IF(OR(Конфігурація!D42=\"2 x VR 70\",Конфігурація!D42=\"3 x VR 70\"),Calculation!Q34,\"-\"))","v":"-"}]
[null,null,null,null,"S7",null,{"$f":"IF(ISERROR(OR(Конфігурація!D42=\"1\")),\"-\",IF(OR(Конфігурація!D42=\"2 x VR 70\",Конфігурація!D42=\"3 x VR 70\"),Calculation!Q35,\"-\"))","v":"-"}]
[]
[{"$f":"Calculation!H22","v":"Розташування підключень VR 70, адреса 3"}]
[]
["R1",null,{"$f":"IF(ISERROR(OR(Конфігурація!D42=\"1\")),\"-\",IF(Конфігурація!D42=\"3 x VR 70\",Calculation!R24,\"-\"))","v":"-"},null,"S1",null,{"$f":"IF(ISERROR(OR(Конфігурація!D42=\"1\")),\"-\",IF(Конфігурація!D42=\"3 x VR 70\",\"-\",\"-\"))","v":"-"}]
["R2",null,{"$f":"IF(ISERROR(OR(Конфігурація!D42=\"1\")),\"-\",IF(Конфігурація!D42=\"3 x VR 70\",Calculation!R25,\"-\"))","v":"-"},null,"S2",null,{"$f":"IF(ISERROR(OR(Конфігурація!D42=\"1\")),\"-\",IF(Конфігурація!D42=\"3 x VR 70\",Calculation!R30,\"-\"))","v":"-"}]
["R3/R4",null,{"$f":"IF(ISERROR(OR(Конфігурація!D42=\"1\")),\"-\",IF(Конфігурація!D42=\"3 x VR 70\",Calculation!R26,\"-\"))","v":"-"},null,"S3",null,{"$f":"IF(ISERROR(OR(Конфігурація!D42=\"1\")),\"-\",IF(Конфігурація!D42=\"3 x VR 70\",Calculation!R31,\"-\"))","v":"-"}]
["R5/R6",null,{"$f":"IF(ISERROR(OR(Конфігурація!D42=\"1\")),\"-\",IF(Конфігурація!D42=\"3 x VR 70\",Calculation!R27,\"-\"))","v":"-"},null,"S4",null,{"$f":"IF(ISERROR(OR(Конфігурація!D42=\"1\")),\"-\",IF(Конфігурація!D42=\"3 x VR 70\",Calculation!R32,\"-\"))","v":"-"}]
[null,null,null,null,"S5",null,{"$f":"IF(ISERROR(OR(Конфігурація!D42=\"1\")),\"-\",IF(Конфігурація!D42=\"3 x VR 70\",Calculation!R33,\"-\"))","v":"-"}]
[null,null,null,null,"S6",null,{"$f":"IF(ISERROR(OR(Конфігурація!D42=\"1\")),\"-\",IF(Конфігурація!D42=\"3 x VR 70\",Calculation!R34,\"-\"))","v":"-"}]
[null,null,null,null,"S7",null,{"$f":"IF(ISERROR(OR(Конфігурація!D42=\"1\")),\"-\",IF(Конфігурація!D42=\"3 x VR 70\",Calculation!R35,\"-\"))","v":"-"}]

{"sheet":"легенда","index":3,"n_rows":16,"n_cols":5,"rows_kept":16,"cut":false,"hidden":true,"merged":[[5,0,5,1],[13,0,13,1],[4,3,4,4]]}
["HCxP",{"$f":"IF(Texts!A6<>0,Texts!A6,Texts!#REF!)","v":"Опалювальний насос для опалювального контуру х"},null,"BufTopDHW",{"$f":"IF(Texts!A23<>0,Texts!A23,Texts!#REF!)","v":"Датчик температури накопичувача вгорі для відсіку гарячої води буферної ємності allSTOR"}]
["HCxcl",{"$f":"IF(Texts!A7<>0,Texts!A7,Texts!#REF!)","v":"Закривання змішувальних клапанів для опалювального контуру x"},null,"BufBtDHW",{"$f":"IF(Texts!A24<>0,Texts!A24,Texts!#REF!)","v":"Датчик температури накопичувача внизу для відсіку гарячої води буферної ємності allSTOR"}]
["HCxop",{"$f":"IF(Texts!A8<>0,Texts!A8,Texts!#REF!)","v":"Відкривання змішувальних клапанів для опалювального контуру x"},null,"BufTopCH",{"$f":"IF(Texts!A25<>0,Texts!A25,Texts!#REF!)","v":"Датчик температури накопичувача вгорі для відсіку опалення буферної ємності allSTOR"}]
["DEMx",{"$f":"IF(Texts!A9<>0,Texts!A9,Texts!#REF!)","v":"Зовнішнє вимкнення опалення для опалювального контуру x"},null,"BufBtCH",{"$f":"IF(Texts!A26<>0,Texts!A26,Texts!#REF!)","v":"Датчик температури накопичувача внизу для відсіку опалення буферної ємності allSTOR"}]
["FSx",{"$f":"IF(Texts!A10<>0,Texts!A10,Texts!#REF!)","v":"Датчик температури лінії подачі для опалювального контуру x"}]
[null,null,null,"TD1",{"$f":"IF(Texts!A28<>0,Texts!A28,Texts!#REF!)","v":"Перший датчик температури для ΔT-регулювання"}]
["SysFlow",{"$f":"IF(Texts!A12<>0,Texts!A12,Texts!#REF!)","v":"Температура лінії подачі систем (гідророзподільник)"},null,"TD2",{"$f":"IF(Texts!A29<>0,Texts!A29,Texts!#REF!)","v":"Другий датчик температури для ΔT-регулювання"}]
[]
["DHW1",{"$f":"IF(Texts!A14<>0,Texts!A14,Texts!#REF!)","v":"Температурний датчик накопичувача"},null,"COLP1",{"$f":"IF(Texts!A32<>0,Texts!A32,Texts!#REF!)","v":"Геліонасос для колекторного поля 1"}]
["DHWTop",{"$f":"IF(Texts!A15<>0,Texts!A15,Texts!#REF!)","v":"Датчик температури накопичувача вгорі для накопичувача ГВ"},null,"COL1",{"$f":"IF(Texts!A33<>0,Texts!A33,Texts!#REF!)","v":"Датчик температури для колекторного поля 1"}]
["DHWBt",{"$f":"IF(Texts!A16<>0,Texts!A16,Texts!#REF!)","v":"Датчик температури накопичувача внизу для накопичувача ГВ"},null,"yield",{"$f":"IF(Texts!A34<>0,Texts!A34,Texts!#REF!)","v":"Датчик для вимірювання внеску"}]
["DHWTopx",{"$f":"IF(Texts!A17<>0,Texts!A17,Texts!#REF!)","v":"Датчик температури накопичувача вгорі для накопичувача ГВ x"},null,"PWM 1",{"$f":"IF(Texts!A35<>0,Texts!A35,Texts!#REF!)","v":"Фактичне значення входу ШІМ і задане значення виходу ШІМ насоса 1\n(лише у поєднанні з геліостанцією VMS 70)"}]
["DHWBtx",{"$f":"IF(Texts!A18<>0,Texts!A18,Texts!#REF!)","v":"Датчик температури накопичувача внизу для накопичувача ГВ x"}]
[null,null,null,"MA",{"$f":"IF(Texts!A37<>0,Texts!A37,Texts!#REF!)","v":"Багатофункціональний вихід"}]
["BufTop",{"$f":"IF(Texts!A20<>0,Texts!A20,Texts!#REF!)","v":"Верхній датчик температури накопичувача буферної ємності"},null,"LP/3WV",{"$f":"IF(Texts!A38<>0,Texts!A38,Texts!#REF!)","v":"Насос завантаження або 3-ходовий перемикальний клапан, перемикання на накопичувач ГВ"}]
["BufBt",{"$f":"IF(Texts!A21<>0,Texts!A21,Texts!#REF!)","v":"Нижній датчик температури накопичувача буферної ємності"},null,"UVSolar",{"$f":"IF(Texts!A39<>0,Texts!A39,Texts!#REF!)","v":"Перемикальний клапан геліонакопичувача"}]

{"sheet":"Texts","index":4,"n_rows":104,"n_cols":34,"rows_kept":104,"cut":false,"hidden":true,"merged":[]}
["Language",{"$f":"Конфігурація!J2","v":"Українська"}]
["Index",{"$f":"MATCH(Конфігурація!J2,$B$4:$AH$4,0)","v":2}]
[]
["Chosen translation","Deutsch","Українська","Français","Italiano","Dansk","Nederlands","Castellano","Türkçe","Magyar","Русский","English","Eesti","Latviski","Lietuvių","Svenska","Norsk","Polski","Čeština","Hrvatski","Slovencina","Română","Slovenski","Srpski","Português","Български","Suomi","Shqip","Македонски","한국어","简体中文","中國傳統的","العربية","Ελληνικά"]
[{"$f":"INDEX($B$5:$AH$101,ROW()-ROW($A$4),$B$2)","v":"Мова"},"Sprache","Мова","Langue","Lingua","Sprog","Taal","Idioma","Dil","Nyelv","Язык","Language","Keel","Valoda","Kalba","Språk","Språk","Język","Jazyk","Jezik","Jazyk","Limba","Jezik","Jezik","Idioma","Език","Kieli","Gjuha","Јазик","언어","语言","語言","اللغة","Γλώσσα"]
["Опалювальний насос для опалювального контуру х","Heizungspumpe für Heizkreis x","Опалювальний насос для опалювального контуру х","Pompe du circuit de chauffage x","Pompa di riscaldamento per circuito di riscaldamento x","Centralvarmepumpe for varmekreds x","CV-pomp voor CV-circuit x","Bomba de calefacción para circuito de calefacción x","Isıtma devresi x için ısıtma devresi pompası","Fűtőköri szivattyú x fűtőkörhöz","Насос системы отопления для отопительного контура x","Heating pump for heating circuit x","Küttepump küttekontuuril x","Apkures kontūra x apkures sūknis","Šildymo kontūro x šildymo sistemos siurblys","Värmepump för värmekrets x","Varmepumpe for varmekrets x","Pompa obiegu grzewczego x","Oběhové čerpadlo topení pro topný okruh x","Crpka za grijanje za toplinski krug x","Tepelné čerpadlo pre vyhrievací okruh x","Pompa de încălzire pentru circuitul de încălzire x","Črpalka sistema ogrevanja za ogrevalni krogotok x","Pumpa za grejanje za grejni krug x","Bomba do aquecimento para circuito de aquecimento x","Отоплителна помпа за отоплителен кръг x","Lämmityspiirin x lämpöjohtopumppu","Pompa e ngrohjes për qarkun e ngrohjes x","Грејна пумпа за грејно коло x","난방 회로 x용 난방 펌프","供暖回路 x 的供暖泵","加熱迴路 x 加熱幫浦","مضخة التسخين لدورة التسخين x‏","Αντλία θέρμανσης για το κύκλωμα θέρμανσης x"]
["Закривання змішувальних клапанів для опалювального контуру x","Mischer schließen für Heizkreis x","Закривання змішувальних клапанів для опалювального контуру x","Fermeture V3V du circuit de chauffage x","Chiudi miscelatore per circuito di riscaldamento x","Luk mikserventil for varmekreds x","Mengklep sluiten voor CV-circuit x","Cerrar mezclador para circuito de calefacción x","Isıtma devresi x için karıştırıcının kapatılması","Keverőszelep zárása x fűtőkörhöz","Закрывание смесителей для отопительного контура x","Close mixer for heating circuit x","Segisti sulgemine küttekontuuril x","Apkures kontūra x maisītāja aizvēršana","Maišytuvo uždarymas šildymo kontūrui x","Stänga blandningsventil för värmekrets x","Lukk blandere for varmekrets x","Zamknąć zawór mieszacza obiegu grzewczego x","Zavírání směšovacího ventilu pro topný okruh x","Zatvaranje ventila za miješanje za toplinski krug x","Zatvorenie zmiešavača pre vyhrievací okruh x","Închideţi vana de amestec pentru circuitul de încălzire x","Zaprtje mešalnega ventila za ogrevalni krogotok x","Zatvoriti mešač za grejni krug x","Fechar válvula de mistura para circuito de aquecimento x","Затворете смесителния вентил за отоплителен кръг x","Lämmityspiirin x sekoitusventtiilin sulkeminen","Mishelator për qarkun e ngrohjes x","Затворање на мешалка за грејно коло x","난방 회로 x용 믹서 닫기","为供暖回路 x 关闭混合器","關閉加熱迴路 x 混合器","أغلق الخلاط لدورة التسخين x‏","Κλείσιμο αναμικτικής βαλβίδας για το κύκλωμα θέρμανσης x"]
["Відкривання змішувальних клапанів для опалювального контуру x","Mischer öffnen für Heizkreis x","Відкривання змішувальних клапанів для опалювального контуру x","Ouverture V3V du circuit de chauffage x","Apri miscelatore per circuito di riscaldamento x","Åbn mikserventil for varmekreds x","Mengklep openen voor CV-circuit x","Abrir mezclador para circuito de calefacción x","Isıtma devresi x için karıştırıcının açılması","Keverőszelep nyitása x fűtőkörhöz","Открывание смесителей для отопительного контура x","Open mixer for heating circuit x","Segisti avamine küttekontuuril x","Apkures kontūra x maisītāja atvēršana","Maišytuvo atidarymas šildymo kontūrui x","Öppna blandningsventil för värmekrets x","Åpne blandere for varmekrets x","Otworzyć zawór mieszacza obiegu grzewczego x","Otevírání směšovacího ventilu pro topný okruh x","Otvaranje ventila za miješanje za toplinski krug x","Otvorenie zmiešavača pre vyhrievací okruh x","Deschideţi vana de amestec pentru circuitul de încălzire x","Odprtje mešalnega ventila za ogrevalni krogotok x","Otvoriti mešač za grejni krug x","Abrir válvula de mistura para circuito de aquecimento x","Отворете смесителния вентил за отоплителен кръг x","Lämmityspiirin x sekoitusventtiilin avaaminen","Hapni mishelatorin për qarkun e ngrohjes x","Отворање на мешалка за грејно коло x","난방 회로 x용 믹서 열기","为供暖回路 x 打开混合器","開啟加熱迴路 x 混合器","افتح الخلاط لدورة التسخين x‏","Άνοιγμα αναμικτικής βαλβίδας για το κύκλωμα θέρμανσης x"]
["Зовнішнє вимкнення опалення для опалювального контуру x","Externe Heizungsabschaltung für Heizkreis x","Зовнішнє вимкнення опалення для опалювального контуру x","Demande de chauffage externe par contact NF pour circuit chauffage x","Spegnimento esterno del riscaldamento per circuito di riscaldamento x","Ekstern varmefrakobling for varmekreds x","Externe verwarmingsuitschakeling voor CV-circuit x","Desconexión externa de calefacción para circuito de calefacción x","Isıtma devresi x için harici ısıtma sistemi anahtarlama","Külső fűtéslekapcsolás x fűtőkörhöz","Внешнее отключение отопления для отопительного контура x","External heating switch-off for heating circuit x","Väline kütte väljalülitamine küttekontuuril x","Apkures kontūra x ārēja apkures atslēgšana","Išorinis šildymo išjungimas šildymo kontūrui x","Extern värmeavstängning för värmekrets x","Ekstern varmeutkobling for varmekrets x","Zewnętrzny wyłącznik ogrzewania obiegu grzewczego x","Externí vypínání topení pro topný okruh x","Vanjsko isključivanje grijanja za toplinski krug x","Externé vypnutie ohrevu pre vyhrievací okruh x","Deconectarea externă a încălzirii pentru circuitul de încălzire x","Zunanji izklop ogrevanja za ogrevalni krogotok x","Eksterno isključivanje grejanja za grejni krug x","Desligamento externo do aquecimento para circuito de aquecimento x","Външно изключване на отоплението за отоплителен кръг x","Lämmityspiirin x ulkoinen lämmityksen poiskytkentä","Fikja e jashtme e ngrohjes për qarkun e ngrohjes x","Екстерно исклучување на греењето за грејно коло x","난방 회로 x용 외부 난방 차단","供暖回路 x 的外部供暖关闭","加熱迴路 x 外部加熱關閉裝置","تجهيزة إيقاف التسخين الخارجية لدورة التسخين x‏","Εξωτερική απενεργοποίηση θέρμανσης για το κύκλωμα θέρμανσης x"]
["Датчик температури лінії подачі для опалювального контуру x","Vorlauftemperaturfühler für Heizkreis x","Датчик температури лінії подачі для опалювального контуру x","Sonde de température du circuit de chauffage x","Sensore della temperatura di mandata per circuito di riscaldamento x","Fremløbstemperaturføler for varmekreds x","Aanvoertemperatuurvoeler voor CV-circuit x","Sonda de temperatura de ida para circuito de calefacción x","Isıtma devresi x için gidiş devresi sıcaklık sensörü","Előremenő hőmérséklet-érzékelő x fűtőkörhöz","Датчик температуры подающей линии для отопительного контура x","Flow temperature sensor for heating circuit x","Pealevoolu temperatuuriandur küttekontuuril x","Apkures kontūra x turpgaitas temperatūras sensors","Šildymo kontūro x tiekiamojo srauto temperatūros jutiklis","Givare framledningstemperatur för värmekrets x","Turtemperaturføler for varmekrets x","Czujnik temperatury zasilania obiegu grzewczego x","Výstupní teplotní čidlo pro topný okruh x","Osjetnik temperature polaznog voda za toplinski krug x","Tepelné čerpadlo pre vyhrievací okruh x","Senzorul temperaturii pe tur pentru circuitul de încălzire x","Senzor temperature dvižnega voda za ogrevalni krogotok x","Senzor temperature polaznog voda za grejni krug x","Sensor da temperatura de avanço para circuito de aquecimento x","Температурен сензор на подаващия тръбопровод за отоплителен кръг x","Lämmityspiirin x menoveden lämpötila-anturi","Sensori i temperaturës së rrjedhës për qarkun e ngrohjes x","Сензор за температура на напојниот вод за грејно коло x","난방 회로 x용 난방 공급수 온도 센서","供暖回路 x 的供水温度传感器","加熱迴路 x 進流溫度感應器","مستشعر درجة حرارة التغذية لدورة التسخين x‏","Αισθητήρας θερμοκρασίας αγωγού προσαγωγής για το κύκλωμα θέρμανσης x"]
[]
[{"$f":"INDEX($B$5:$AH$101,ROW()-ROW($A$4),$B$2)","v":"Температура лінії подачі систем (гідророзподільник)"},"Systemvorlauftemperatur (Hydraulische Weiche)","Температура лінії подачі систем (гідророзподільник)","Température de départ du sytème (Température découpleur)","Temperatura di mandata dell'impianto (valvola deviatrice)","Systemfremløbstemperatur (blanderør)","Systeemaanvoertemperatuur (open verdeler)","Temperatura de ida del sistema (compensador hidráulico)","Sistem gidiş devresi sıcaklığı (Hidrolik karıştırıcı)","Rendszer előremenő hőmérséklete (hidraulikus váltó)","Температура в подающей линии системы (гидравлический разделитель)","System flow temperature (low loss header)","Süsteemi pealevoolu temperatuuriandur (hüdrauliline haru)","Sistēmas turpgaitas temperatūra (hidrauliskais atdalītājs)","Į sistemą tiekiamo srauto temperatūra (hidraulinis skirtuvas)","Systemets tilloppstemperatur (hydrauliskt bypass)","Systemturtemperatur (blanderør)","Temperatura zasilania systemu (sprzęgło hydrauliczne)","Výstupní teplota systému (hydraulická výhybka)","Sustav temperature polaznog voda (hidraulična skretnica)","Vstupná teplota systému (hydraulická výhybka)","Temperatura pe turul sistemului (butelia de echilibrare hidraulică)","Temperatura dvižnega voda sistema (hidravlična kretnica)","Temperatura polaznog voda sistema (hidraulična skretnica)","Temperatura de entrada do sistema (depósito de equilíbrio hidráulico)","Системна температура на подаването (хидравличен съединител)","Järjestelmän menoveden lämpötila (hydraulivaihde)","Temperatura e rrjedhës së sistemit (çelës hidraulik)","Температура на напојниот вод на системот (хидрауличен сепаратор)","시스템 난방 공급수 온도(저손실 헤더)","系统供水温度 (水力分压器)","系統進流溫度（液壓預選器）","درجة حرارة تغذية النظام (فاصل هيدروليكي)","Θερμοκρασία προσαγωγής συστήματος (υδραυλική διάταξη διαχωρισμού)"]
[]
[{"$f":"INDEX($B$5:$AH$101,ROW()-ROW($A$4),$B$2)","v":"Температурний датчик накопичувача"},"Speichertemperaturfühler","Температурний датчик накопичувача","Sonde de température ballon ECS","Sensore di temperatura boiler","Beholdertemperaturføler","Boilertemperatuursensor","Sonda de temperatura del acumulador","Boyler sıcaklık sensörü","Tárolóhőmérséklet-érzékelő","Датчик температуры накопителя","Cylinder temperature sensor","Mahuti temperatuuriandur","Tvertnes temperatūras sensors","Kaupiamojo šildytuvo temperatūros jutiklis","VVB-givare","Tanktemperaturføler","Czujnik temperatury zasobnika","Teplotní čidlo zásobníku","Osjetnik temperature spremnika","Snímač teploty zásobníka","Senzor temperatură boiler","Temperaturni senzor zalogovnika","Senzor temperature rezervoara","Sensor da temperatura do acumulador","Датчик на температурата на водосъдържателя","Varaajan lämpötila-anturi","Sensori i temperaturës së rezervuarit","Сензор за температура на резервоарот","실린더 온도 센서","储水罐温度传感器","儲存裝置溫度感應器","مستشعر درجة حرارة الخزان","Αισθητήρας θερμοκρασίας ταμιευτήρα"]
[{"$f":"INDEX($B$5:$AH$101,ROW()-ROW($A$4),$B$2)","v":"Датчик температури накопичувача вгорі для накопичувача ГВ"},"Speichertemperaturfühler oben für WW-Speicher","Датчик температури накопичувача вгорі для накопичувача ГВ","Sonde de température ballon ECS : position haute","Sensore di temperatura boiler superiore per boiler acqua calda","Beholderføler foroven for varmtvandsbeholder","Boilertemperatuursensor boven voor WW-boiler","Sonda superior de temperatura del acumulador para acumulador de agua caliente","Sıcak su boyleri için üst boyler sıcaklık sensörü","Felső tárolóhőmérséklet-érzékelő melegvíztárolóhoz","Датчик температуры вверху накопителя горячей воды","Top cylinder temperature sensor for DHW cylinder","Mahuti temperatuuriandur ülal sooja vee mahuti jaoks","KŪ boilera temperatūras sensors augšpusē","KV kaupiamojo šildytuvo temperatūros jutiklis viršuje","VVB-givare upptills för varmvattenberedare","Tanktemperaturføler oppe for varmtvannstank","Górny czujnik temperatury zasobnika ciepłej wody","Teplotní čidlo zásobníku horní pro zásobní TV","Osjetnik temperature spremnika gore za spremnik TV","Snímač teploty hore pre zásobník teplej vody","Senzorul temperatură boiler sus pentru boilerul pentru AC","Temperaturni senzor zalogovnika zgoraj za zalogovnik tople vode","Senzor temperature rezervoara gore za rezervoar za toplu vodu","Sensor da temperatura do acumulador em cima para acumulador de água quente","Датчик на температурата на водосъдържателя горе за водосъдържател ГВ","Lämminvesivaraajan varaajan ylhäällä sijaitseva lämpötila-anturi","Sensori i temperaturës së rezervuarit lart për rezervuarin e ujit të ngrohtë","Сензор за температура на резервоарот горе за резервоар за ТВ","온수 저장 탱크용 상부 실린더 온도 센서","热水储水罐的上部储水罐温度传感器","WW 儲存裝置的上方儲存裝置溫度感應器","مستشعر درجة حرارة الخزان بأعلى لخزان الماء الساخن","Αισθητήρας θερμοκρασίας ταμιευτήρα επάνω για τον ταμιευτήρα ζεστού νερού"]
[{"$f":"INDEX($B$5:$AH$101,ROW()-ROW($A$4),$B$2)","v":"Датчик температури накопичувача внизу для накопичувача ГВ"},"Speichertemperaturfühler unten für WW-Speicher","Датчик температури накопичувача внизу для накопичувача ГВ","Sonde de température ballon ECS : position basse","Sensore di temperatura boiler inferiore per boiler acqua calda","Beholderføler forneden for varmtvandsbeholder","Boilertemperatuursensor onder voor WW-boiler","Sonda inferior de temperatura del acumulador para acumulador de agua caliente","Sıcak su boyleri için alt boyler sıcaklık sensörü","Alsó tárolóhőmérséklet-érzékelő melegvíztárolóhoz","Датчик температуры внизу накопителя горячей воды","Bottom cylinder temperature sensor for DHW cylinder","Mahuti temperatuuriandur all sooja vee mahuti jaoks","KŪ boilera temperatūras sensors apakšpusē","KV kaupiamojo šildytuvo temperatūros jutiklis apačioje","VVB-givare nedtills för varmvattenberedare","Tanktemperaturføler nede for varmtvannstank","Dolny czujnik temperatury zasobnika ciepłej wody","Teplotní čidlo zásobníku dolní pro zásobní TV","Osjetnik temperature spremnika dolje za spremnik TV","Snímač teploty dole pre zásobník teplej vody","Senzorul temperatură boiler jos pentru boilerul pentru AC","Temperaturni senzor zalogovnika spodaj za zalogovnik tople vode","Senzor temperature rezervoara dole za rezervoar za toplu vodu","Sensor da temperatura do acumulador em baixo para acumulador de água quente","Датчик на температурата на водосъдържателя долу за водосъдържател ГВ","Lämminvesivaraajan varaajan alhaalla sijaitseva lämpötila-anturi","Sensori i temperaturës së rezervuarit poshtë për rezervuarin e ujit të ngrohtë","Сензор за температура на резервоарот долу за резервоар за ТВ","온수 저장 탱크용 하부 실린더 온도 센서","热水储水罐的下部储水罐温度传感器","WW 儲存裝置的下方儲存裝置溫度感應器","مستشعر درجة حرارة الخزان بأسفل لخزان الماء الساخن","Αισθητήρας θερμοκρασίας ταμιευτήρα κάτω για τον ταμιευτήρα ζεστού νερού"]
[{"$f":"INDEX($B$5:$AH$101,ROW()-ROW($A$4),$B$2)","v":"Датчик температури накопичувача вгорі для накопичувача ГВ x"},"Speichertemperaturfühler oben für WW-Speicher x","Датчик температури накопичувача вгорі для накопичувача ГВ x","Sonde de température ballon ECS x : position haute","Sensore di temperatura boiler superiore per boiler acqua calda x","Beholderføler foroven for varmtvandsbeholder x","Boilertemperatuursensor boven voor WW-boiler x","Sonda superior de temperatura del acumulador para acumulador de agua caliente x","Sıcak su boyleri x için üst boyler sıcaklık sensörü","Felső tárolóhőmérséklet-érzékelő x melegvíztárolóhoz","Датчик температуры вверху накопителя горячей воды x","Top cylinder temperature sensor for DHW cylinder x","Mahuti temperatuuriandur ülal sooja vee mahuti x jaoks","KŪ boilera x temperatūras sensors augšpusē","KV kaupiamojo šildytuvo x temperatūros jutiklis viršuje","VVB-givare upptills för varmvattenberedare x","Tanktemperaturføler oppe for varmtvannstank x","Górny czujnik temperatury zasobnika ciepłej wody x","Teplotní čidlo zásobníku horní pro zásobní TV x","Osjetnik temperature spremnika gore za spremnik TV x","Snímač teploty hore pre zásobník teplej vody x","Senzorul temperatură boiler sus pentru boilerul pentru AC x","Temperaturni senzor zalogovnika zgoraj za zalogovnik tople vode x","Senzor temperature rezervoara gore za rezervoar za toplu vodu x","Sensor da temperatura do acumulador em cima para acumulador de água quente x","Датчик на температурата на водосъдържателя горе за водосъдържател ГВ х","Lämminvesivaraajan x varaajan ylhäällä sijaitseva lämpötila-anturi","Sensori i temperaturës së rezervuarit lart për rezervuarin e ujit të ngrohtë x","Сензор за температура на резервоарот горе за резервоар за ТВ x","온수 저장 탱크 x용 상부 실린더 온도 센서","热水储水罐 x 的上部储水罐温度传感器","WW 儲存裝置 x 的上方儲存裝置溫度感應器","مستشعر درجة حرارة الخزان بأعلى لخزان الماء الساخن x‏","Αισθητήρας θερμοκρασίας ταμιευτήρα επάνω για τον ταμιευτήρα ζεστού νερού x"]
[{"$f":"INDEX($B$5:$AH$101,ROW()-ROW($A$4),$B$2)","v":"Датчик температури накопичувача внизу для накопичувача ГВ x"},"Speichertemperaturfühler unten für WW-Speicher x","Датчик температури накопичувача внизу для накопичувача ГВ x","Sonde de température ballon ECS x : position basse","Sensore di temperatura boiler inferiore per boiler acqua calda x","Beholderføler forneden for varmtvandsbeholder x","Boilertemperatuursensor onder voor WW-boiler x","Sonda inferior de temperatura del acumulador para acumulador de agua caliente x","Sıcak su boyleri x için alt boyler sıcaklık sensörü","Alsó tárolóhőmérséklet-érzékelő x melegvíztárolóhoz","Датчик температуры внизу накопителя горячей воды x","Bottom cylinder temperature sensor for DHW cylinder x","Mahuti temperatuuriandur all sooja vee mahuti x jaoks","KŪ boilera x temperatūras sensors apakšpusē","KV kaupiamojo šildytuvo x temperatūros jutiklis apačioje","VVB-givare nedtills för varmvattenberedare x","Tanktemperaturføler nede for varmtvannstank x","Dolny czujnik temperatury zasobnika ciepłej wody x","Teplotní čidlo zásobníku dolní pro zásobní TV x","Osjetnik temperature spremnika dolje za spremnik TV x","Snímač teploty dole pre zásobník teplej vody x","Senzorul temperatură boiler jos pentru boilerul pentru AC x","Temperaturni senzor zalogovnika spodaj za zalogovnik tople vode x","Senzor temperature rezervoara dole za rezervoar za toplu vodu x","Sensor da temperatura do acumulador em baixo para acumulador de água quente x","Датчик на температурата на водосъдържателя долу за водосъдържател ГВ х","Lämminvesivaraajan x varaajan alhaalla sijaitseva lämpötila-anturi","Sensori i temperaturës së rezervuarit poshtë për rezervuarin e ujit të ngrohtë x","Сензор за температура на резервоарот долу за резервоар за ТВ x","온수 저장 탱크 x용 하부 실린더 온도 센서","热水储水罐 x 的下部储水罐温度传感器","WW 儲存裝置 x 的下方儲存裝置溫度感應器","مستشعر درجة حرارة الخزان بأسفل لخزان الماء الساخن x‏","Αισθητήρας θερμοκρασίας ταμιευτήρα κάτω για τον ταμιευτήρα ζεστού νερού x"]
[]
[{"$f":"INDEX($B$5:$AH$101,ROW()-ROW($A$4),$B$2)","v":"Верхній датчик температури накопичувача буферної ємності"},"Oberer Speicherfühler von Pufferspeicher","Верхній датчик температури накопичувача буферної ємності","Sonde de température ballon tampon : position haute","Sensore boiler superiore per bollitore tampone","Øverste beholderføler fra bufferbeholder","Bovenste boilertemperatuursensor van buffer","Sonda superior de acumulador del acumulador tampón","Akümülasyon tankının üst boyler sensörü","Puffertároló felső tárolóhőmérséklet-érzékelője","Верхний датчик буферной ёмкости","Top cylinder sensor for the buffer cylinder","Puhvermahuti ülemine mahuti andur","Bufertvertnes augšējais sensors","Akumuliacinės talpyklos viršutinis kaupiamojo šildytuvo jutiklis","Övre VVB-givare från ackumulatortank","Øvre tankføler i buffertank","Górny czujnik temperatury zasobnika buforowego","Horní teplotní čidlo zásobníku trivalentního akumulačního zásobníku","Gornji osjetnik temperature međuspremnika","Horný snímač vyrovnávacieho zásobníka","Senzor superior temperatură boiler de la vasul tampon","Zgornji temperaturni senzor toplotnega zbiralnika","Gornji senzor temperature rezervoara za bafer rezervoar","Sensor do acumulador superior do depósito tampão","Горен датчик на температурата на буферния водосъдържател","Puskurivaraajan ylempi varaaja-anturi","Sensori i sipërm i rezervuarit të amortizatorit","Горен сензор за резервоар за меѓу-резервоарот","버퍼 메모리의 상부 실린더 센서","缓冲储水罐的上部储水罐温度传感器","緩衝儲存裝置上方儲存裝置感應器","مستشعر الخزان العلوي لمركم التخزين","Επάνω αισθητήρας ταμιευτήρα του ταμιευτήρα προσωρινής αποθήκευσης"]
[{"$f":"INDEX($B$5:$AH$101,ROW()-ROW($A$4),$B$2)","v":"Нижній датчик температури накопичувача буферної ємності"},"Unterer Speicherfühler von Pufferspeicher","Нижній датчик температури накопичувача буферної ємності","Sonde de température ballon tampon : position basse","Sensore boiler inferiore per bollitore tampone","Nederste beholderføler fra bufferbeholder","Onderste boilertemperatuursensor van buffer","Sonda inferior de acumulador del acumulador tampón","Akümülasyon tankının alt boyler sensörü","Puffertároló alsó tárolóhőmérséklet-érzékelője","Нижний датчик буферной ёмкости","Bottom cylinder temperature sensor for the buffer cylinder","Puhvermahuti alumine mahuti andur","Bufertvertnes apakšējais sensors","Akumuliacinės talpyklos apatinis kaupiamojo šildytuvo jutiklis","Nedre VVB-givare från ackumulatortank","Nedre tankføler i buffertank","Dolny czujnik temperatury zasobnika buforowego","Dolní teplotní čidlo zásobníku trivalentního akumulačního zásobníku","Donji osjetnik temperature međuspremnika","Dolný snímač vyrovnávacieho zásobníka","Senzor inferior temperatură boiler de la vasul tampon","Spodnji temperaturni senzor toplotnega zbiralnika","Donji senzor temperature rezervoara za bafer rezervoar","Sensor do acumulador inferior do depósito tampão","Долен датчик на температурата на буферния водосъдържател","Puskurivaraajan alempi varaaja-anturi","Sensori i poshtëm i rezervuarit të amortizatorit","Долен сензор за резервоар за меѓу-резервоарот","버퍼 메모리의 하부 실린더 센서","缓冲储水罐的下部储水罐温度传感器","緩衝儲存裝置下方儲存裝置感應器","مستشعر الخزان السفلي لمركم التخزين","Κάτω αισθητήρας ταμιευτήρα του ταμιευτήρα προσωρινής αποθήκευσης"]
[]
[{"$f":"INDEX($B$5:$AH$101,ROW()-ROW($A$4),$B$2)","v":"Датчик температури накопичувача вгорі для відсіку гарячої води буферної ємності allSTOR"},"Speicherfühler oben für WW-Teil von allSTOR Pufferspeicher","Датчик температури накопичувача вгорі для відсіку гарячої води буферної ємності allSTOR","Sonde haut ballon tampon pour partie ECS de allSTOR","Sensore boiler superiore per elemento acqua calda del bollitore tampone allSTOR","Beholderføler foroven for varmtvandsdel fra allSTOR bufferbeholder","Boilertemperatuursensor boven voor WW-deel allSTOR-buffer","Sonda superior de acumulador para pieza de agua caliente del acumulador tampón allSTOR","allSTOR akümülasyon tankının sıcak su parçası için üst boyler sensörü","Felső tárolóhőmérséklet-érzékelő az allSTOR puffertároló melegvíz eleméhez","Верхний датчик отсека ГВС буферной ёмкости allSTOR","Top cylinder temperature sensor for DHW section of allSTOR buffer cylinder","Mahuti andur ülal allSTOR puhvermahuti sooja vee osa jaoks","Bufertvertnes augšējais sensors allSTOR KŪ daļai","Viršutinis kaupiamojo šildytuvo jutiklis „allSTOR“ akumuliacinės talpyklos karšto vandens daliai","Övre VVB-givare för varmvattendel från allSTOR ackumulatortank","Tankføler oppe for varmtvannsdel på allSTOR buffertank","Górny czujnik temperatury części zasobnika buforowego allSTOR z ciepłą wodą","Teplotní čidlo zásobníku horní pro část TV trivalentního akumulačního zásobníku allSTOR","Osjetnik temperature spremnika gore za dio TV allSTOR međuspremnika","Snímač hore pre teplovodnú časť vyrovnávacieho zásobníka allSTOR","Senzor temperatură boiler sus pentru o parte AC din vasul tampon allSTOR","Temperaturni senzor zalogovnika zgoraj za del toplotnega zbiralnika allSTOR za toplo vodo","Senzor temperature rezervoara gore za deo sa toplom vodom allSTOR bafer rezervoara","Sensor do acumulador em cima para peça de água quente do depósito tampão allSTOR","Датчик на температурата на водосъдържателя горе за част ГВ от allSTOR буферен водосъдържател","allSTOR-puskurivaraajan LKV-osan ylhäällä sijaitseva varaaja-anturi","Sensori i rezervuarit lart për pjesën e ujit të ngrohtë të amortizatorit allSTOR","Сензор за резервоар горе за делот за ТВ од allSTOR меѓу-резервоарот","allSTOR 버퍼 실린더의 온수 부분용 상부 실린더 온도 센서","allSTOR 缓冲储水罐热水部分的上部储水罐传感器","allSTOR 緩衝儲存裝置 WW 部位的上方儲存裝置感應器","مستشعر الخزان بأعلى لجزء الماء الساخن بمركم التخزين allSTOR‏","Αισθητήρας ταμιευτήρα επάνω για το τμήμα ζεστού νερού του ταμιευτήρα προσωρινής αποθήκευσης allSTOR"]
[{"$f":"INDEX($B$5:$AH$101,ROW()-ROW($A$4),$B$2)","v":"Датчик температури накопичувача внизу для відсіку гарячої води буферної ємності allSTOR"},"Speicherfühler unten für WW-Teil von allSTOR Pufferspeicher","Датчик температури накопичувача внизу для відсіку гарячої води буферної ємності allSTOR","Sonde bas ballon tampon pour partie ECS de allSTOR","Sensore boiler inferiore per elemento acqua calda del bollitore tampone allSTOR","Beholderføler forneden for varmtvandsdel fra allSTOR bufferbeholder","Boilertemperatuursensor onder voor WW-deel allSTOR-buffer","Sonda inferior de acumulador para parte de agua caliente del acumulador tampón allSTOR","allSTOR akümülasyon tankının sıcak su parçası için alt boyler sensörü","Alsó tárolóhőmérséklet-érzékelő az allSTOR puffertároló melegvíz eleméhez","Нижний датчик отсека ГВС буферной ёмкости allSTOR","Bottom cylinder temperature sensor for DHW section of allSTOR buffer cylinder","Mahuti andur all allSTOR puhvermahuti sooja vee osa jaoks","Bufertvertnes apakšējais sensors allSTOR KŪ daļai","Apatinis kaupiamojo šildytuvo jutiklis „allSTOR“ akumuliacinės talpyklos karšto vandens daliai","Nedre VVB-givare för varmvattendel från allSTOR ackumulatortank","Tankføler nede for varmtvannsdel på allSTOR buffertank","Dolny czujnik temperatury części zasobnika buforowego allSTOR z ciepłą wodą","Teplotní čidlo zásobníku dolní pro část TV trivalentního akumulačního zásobníku allSTOR","Osjetnik temperature spremnika dolje za dio TV allSTOR međuspremnika","Snímač dole pre teplovodnú časť vyrovnávacieho zásobníka allSTOR","Senzor temperatură boiler jos pentru o parte AC din vasul tampon allSTOR","Temperaturni senzor zalogovnika spodaj za del toplotnega zbiralnika allSTOR za toplo vodo","Senzor temperature rezervoara dole za deo sa toplom vodom allSTOR bafer rezervoara","Sensor do acumulador em baixo para peça de água quente do depósito tampão allSTOR","Датчик на температурата на водосъдържателя долу за част ГВ от allSTOR буферен водосъдържател","allSTOR-puskurivaraajan LKV-osan alhaalla sijaitseva varaaja-anturi","Sensori i rezervuarit poshtë për pjesën e ujit të ngrohtë të amortizatorit allSTOR","Сензор за резервоар долу за делот за ТВ од allSTOR меѓу-резервоарот","allSTOR 버퍼 실린더의 온수 부분용 하부 실린더 온도 센서","allSTOR 缓冲储水罐热水部分的下部储水罐传感器","allSTOR 緩衝儲存裝置 WW 部位的下方儲存裝置感應器","مستشعر الخزان بأسفل لجزء الماء الساخن بمركم التخزين allSTOR‏","Αισθητήρας ταμιευτήρα κάτω για το τμήμα ζεστού νερού του ταμιευτήρα προσωρινής αποθήκευσης allSTOR"]
[{"$f":"INDEX($B$5:$AH$101,ROW()-ROW($A$4),$B$2)","v":"Датчик температури накопичувача вгорі для відсіку опалення буферної ємності allSTOR"},"Speicherfühler oben für Hzg-Teil von allSTOR Pufferspeicher","Датчик температури накопичувача вгорі для відсіку опалення буферної ємності allSTOR","Sonde haut ballon tampon pour partie chauffage de allSTOR","Sensore boiler superiore per elemento riscaldamento del bollitore tampone allSTOR","Beholderføler foroven for varmedel fra allSTOR bufferbeholder","Boilertemperatuursensor boven voor verwarmingsdeel allSTOR-buffer","Sonda superior de acumulador para parte de calefacción del acumulador tampón allSTOR","allSTOR akümülasyon tankının ısıtma sistemi parçası için üst boyler sensörü","Felső tárolóhőmérséklet-érzékelő az allSTOR puffertároló fűtőeleméhez","Верхний датчик отсека отопления буферной ёмкости allSTOR","Top cylinder temperature sensor for heating section of allSTOR buffer cylinder","Mahuti andur ülal allSTOR puhvermahuti kütte osa jaoks","Bufertvertnes augšējais sensors allSTOR apkures daļai","Viršutinis kaupiamojo šildytuvo jutiklis „allSTOR“ akumuliacinės talpyklos šildymo daliai","Övre VVB-givare för värmedel från allSTOR ackumulatortank","Tankføler oppe for varmedel på allSTOR buffertank","Górny czujnik temperatury części grzewczej zasobnika buforowego allSTOR","Teplotní čidlo zásobníku horní pro část topení trivalentního akumulačního zásobníku allSTOR","Osjetnik temperature spremnika gore za dio grij. allSTOR međuspremnika","Snímač hore pre ohrevnú časť vyrovnávacieho zásobníka allSTOR","Senzor temperatură boiler sus pentru partea de încălzire din vasul tampon allSTOR","Temperaturni senzor zalogovnika zgoraj za del toplotnega zbiralnika allSTOR za ogrevanje","Senzor temperature rezervoara gore za grejni deo allSTOR bafer rezervoara","Sensor do acumulador em cima para peça de aquecimento do depósito tampão allSTOR","Датчик на температурата на водосъдържателя горе за част отопление от allSTOR буферен водосъдържател","allSTOR-puskurivaraajan lämmitysosan ylhäällä sijaitseva varaaja-anturi","Sensori i rezervuarit lart për pjesën e ngrohjes së amortizatorit allSTOR","Сензор за резервоар горе за делот за заг. од allSTOR меѓу-резервоарот","allSTOR 버퍼 실린더의 난방 부분용 상부 실린더 온도 센서","allSTOR 缓冲储水罐供暖部分的上部储水罐传感器","allSTOR 緩衝儲存裝置加熱部位的上方儲存裝置感應器","مستشعر الخزان بأعلى لجزء التسخين بمركم التخزين allSTOR‏","Αισθητήρας ταμιευτήρα επάνω για το τμήμα θέρμανσης του ταμιευτήρα προσωρινής αποθήκευσης allSTOR"]
[{"$f":"INDEX($B$5:$AH$101,ROW()-ROW($A$4),$B$2)","v":"Датчик температури накопичувача внизу для відсіку опалення буферної ємності allSTOR"},"Speicherfühler unten für Hzg-Teil von allSTOR Pufferspeicher","Датчик температури накопичувача внизу для відсіку опалення буферної ємності allSTOR","Sonde bas ballon tampon pour partie chauffage de allSTOR","Sensore boiler inferiore per elemento riscaldamento del bollitore tampone allSTOR","Beholderføler forneden for varmedel fra allSTOR bufferbeholder","Boilertemperatuursensor onder voor verwarmingsdeel allSTOR-buffer","Sonda inferior de acumulador para parte de calefacción del acumulador tampón allSTOR","allSTOR akümülasyon tankının ısıtma sistemi parçası için alt boyler sensörü","Alsó tárolóhőmérséklet-érzékelő az allSTOR puffertároló fűtőeleméhez","Нижний датчик отсека отопления буферной ёмкости allSTOR","Bottom cylinder temperature sensor for heating section of allSTOR buffer cylinder","Mahuti andur all allSTOR puhvermahuti kütte osa jaoks","Bufertvertnes apakšējais sensors allSTOR apkures daļai","Apatinis kaupiamojo šildytuvo jutiklis „allSTOR“ akumuliacinės talpyklos šildymo daliai","Nedre VVB-givare för värmedel från allSTOR ackumulatortank","Tankføler nede for varmedel på allSTOR buffertank","Dolny czujnik temperatury części grzewczej zasobnika buforowego allSTOR","Teplotní čidlo zásobníku dolní pro část topení trivalentního akumulačního zásobníku allSTOR","Osjetnik temperature spremnika dolje za dio grij. allSTOR međuspremnika","Snímač dole pre ohrevnú časť vyrovnávacieho zásobníka allSTOR","Senzor temperatură boiler jos pentru partea de încălzire din vasul tampon allSTOR","Temperaturni senzor zalogovnika spodaj za del toplotnega zbiralnika allSTOR za ogrevanje","Senzor temperature rezervoara dole za grejni deo allSTOR bafer rezervoara","Sensor do acumulador em baixo para peça de aquecimento do depósito tampão allSTOR","Датчик на температурата на водосъдържателя долу за част отопление от allSTOR буферен водосъдържател","allSTOR-puskurivaraajan lämmitysosan alhaalla sijaitseva varaaja-anturi","Sensori i rezervuarit poshtë për pjesën e ngrohjes së amortizatorit allSTOR","Сензор за резервоар долу за делот за заг. од allSTOR меѓу-резервоарот","allSTOR 버퍼 실린더의 난방 부분용 하부 실린더 온도 센서","allSTOR 缓冲储水罐供暖部分的下部储水罐传感器","allSTOR 緩衝儲存裝置加熱部位的下方儲存裝置感應器","مستشعر الخزان بأسفل لجزء التسخين بمركم التخزين allSTOR‏","Αισθητήρας ταμιευτήρα κάτω για το τμήμα θέρμανσης του ταμιευτήρα προσωρινής αποθήκευσης allSTOR"]
[]
[{"$f":"INDEX($B$5:$AH$101,ROW()-ROW($A$4),$B$2)","v":"Перший датчик температури для ΔT-регулювання"},"Erster Temperaturfühler für eine ΔT Regelung","Перший датчик температури для ΔT-регулювання","Sonde de temp. pour régul différentielle 1","Primo sensore di temperatura per una regolazione ΔT","Første temperatursensor for en ΔT styring","Temperatuursensor voor een ΔT-regeling","Primera sonda de temperatura para una regulación ΔT","Bir ΔT ayarlaması için birinci sıcaklık sensörü","Első hőmérséklet-érzékelő ΔT szabályozáshoz","Первый датчик температуры для ΔT-регулирования","First temperature sensor for ΔT control","Esimene temperatuuriandur ΔT regulaatori jaoks","ΔT regulēšanas pirmais temperatūras sensors","Pirmas temperatūros jutiklis ΔT reguliavimui","Första temperaturgivare för en ΔT reglering","Første temperaturføler for en ΔT-regulering","Pierwszy czujnik temperatury do regulacji ΔT","První teplotní senzor pro regulaci ΔT","Prvi osjetnik temperature za ΔT regulaciju","Prvý snímač teploty pre ΔT reguláciu","Primul senzor de temperatură pentru o reglare ΔT","Prvi temperaturni senzor za regulacijo ΔT","Prvi temperaturni senzor za ΔT regulator","Primeiro sensor de temperatura para uma regulação ΔT","Първи температурен сензор за ΔT регулиране","ΔT-säädön ensimmäinen lämpötila-anturi","Sensori i parë i temperaturës për një çelës rregullues ΔT","Прв сензор за температура за ΔT регулирање","ΔT 제어용 첫 번째 온도 센서","ΔT 控制装置的第一个温度传感器","ΔT 調節的第一個溫度感應器","مستشعر درجة الحرارة الأول لنظام التحكم ΔT‏","Πρώτος αισθητήρας θερμοκρασίας για μια ρύθμιση ΔT"]
[{"$f":"INDEX($B$5:$AH$101,ROW()-ROW($A$4),$B$2)","v":"Другий датчик температури для ΔT-регулювання"},"Zweiter Temperaturfühler für eine ΔT Regelung","Другий датчик температури для ΔT-регулювання","Sonde de temp. pour régul différentielle 2","Secondo sensore di temperatura per una regolazione ΔT","Anden temperatursensor for en ΔT styring","Tweede temperatuursensor voor een ΔT-regeling","Segunda sonda de temperatura para una regulación ΔT","Bir ΔT ayarlaması için ikinci sıcaklık sensörü","Második hőmérséklet-érzékelő ΔT szabályozáshoz","Второй датчик температуры для ΔT-регулирования","Second temperature sensor for ΔT control","Teine temperatuuriandur ΔT regulaatori jaoks","ΔT regulēšanas otrais temperatūras sensors","Antras temperatūros jutiklis ΔT reguliavimui","Andra temperaturgivare för en ΔT reglering","Andre temperaturføler for en ΔT-regulering","Drugi czujnik temperatury do regulacji ΔT","Druhý teplotní senzor pro regulaci ΔT","Drugi osjetnik temperature za ΔT regulaciju","Druhý snímač teploty pre ΔT reguláciu","Al doilea senzor de temperatură pentru o reglarea ΔT","Drugi temperaturni senzor za regulacijo ΔT","Drugi temperaturni senzor za ΔT regulator","Segundo sensor de temperatura para uma regulação ΔT","Втори температурен сензор за ΔT регулиране","ΔT-säädön toinen lämpötila-anturi","Sensori i dytë i temperaturës për një çelës rregullues ΔT","Втор сензор за температура за ΔT регулирање","ΔT 제어용 두 번째 온도 센서","ΔT 控制装置的第二个温度传感器","ΔT 調節的第二個溫度感應器","مستشعر درجة الحرارة الثاني لنظام التحكم ΔT‏","Δεύτερος αισθητήρας θερμοκρασίας για μια ρύθμιση ΔT"]
[{"$f":"INDEX($B$5:$AH$101,ROW()-ROW($A$4),$B$2)","v":"Другий датчик температури для ΔT-регулювання"},"Zweiter Temperaturfühler für eine ΔT Regelung","Другий датчик температури для ΔT-регулювання","Sonde de temp. pour régul différentielle 2","Secondo sensore di temperatura per una regolazione ΔT","Anden temperatursensor for en ΔT styring","Tweede temperatuursensor voor een ΔT-regeling","Segunda sonda de temperatura para una regulación ΔT","Bir ΔT ayarlaması için ikinci sıcaklık sensörü","Második hőmérséklet-érzékelő ΔT szabályozáshoz","Второй датчик температуры для ΔT-регулирования","Second temperature sensor for ΔT control","Teine temperatuuriandur ΔT regulaatori jaoks","ΔT regulēšanas otrais temperatūras sensors","Antras temperatūros jutiklis ΔT reguliavimui","Andra temperaturgivare för en ΔT reglering","Andre temperaturføler for en ΔT-regulering","Drugi czujnik temperatury do regulacji ΔT","Druhý teplotní senzor pro regulaci ΔT","Drugi osjetnik temperature za ΔT regulaciju","Druhý snímač teploty pre ΔT reguláciu","Al doilea senzor de temperatură pentru o reglarea ΔT","Drugi temperaturni senzor za regulacijo ΔT","Drugi temperaturni senzor za ΔT regulator","Segundo sensor de temperatura para uma regulação ΔT","Втори температурен сензор за ΔT регулиране","ΔT-säädön toinen lämpötila-anturi","Sensori i dytë i temperaturës për një çelës rregullues ΔT","Втор сензор за температура за ΔT регулирање","ΔT 제어용 두 번째 온도 센서","ΔT 控制装置的第二个温度传感器","ΔT 調節的第二個溫度感應器","مستشعر درجة الحرارة الثاني لنظام التحكم ΔT‏","Δεύτερος αισθητήρας θερμοκρασίας για μια ρύθμιση ΔT"]
[]
[{"$f":"INDEX($B$5:$AH$101,ROW()-ROW($A$4),$B$2)","v":"Геліонасос для колекторного поля 1"},"Kollektorpumpe für Kollektorfeld 1","Геліонасос для колекторного поля 1","Pompe solaire","Pompa di collettore per campo collettore 1","Solarpumpe for solfangerfelt 1","Zonne-energiepomp voor collectorveld 1","Bomba de colector para campo de colectores 1","Kolektör alanı 1 için kolektör pompası","Szolárszivattyú 1-es kollektormezőhöz","Коллекторный насос для коллекторного поля 1","Collector pump for collector field 1","Kollektorpump kollektorivälja jaoks 1","1. kolektora lauka kolektora sūknis","Kolektorinis siurblys kolektoriaus laukui 1","Solpump för kollektorfält 1","Kollektorpumpe for kollektorfelt 1","Pompa solarna pola kolektorów 1","Solární čerpadlo pro kolektorové pole 1","Solarna crpka za polje kolektora 1","Kolektorové čerpadlo pre kolektorové pole 1","Pompă solară pentru câmpul colector 1","Solarna črpalka za kolektorsko polje 1","Solarna pumpa za polje kolektora 1","Bomba solar para campo do coletor 1","Соларна помпа за колекторно поле 1","Keräinkentän 1 aurinkoenergian keruupiirin kiertopumppu","Pompa e kolektorit për fushën e kolektorit 1","Колекторска пумпа за поле на колекторот 1","콜렉터 필드 1용 콜렉터 펌프","集热器阵列 1 的集热器泵","集能區 1 集能幫浦","مضخة المُجَّمع لنطاق المُجَّمع 1‏","Αντλία συλλέκτη για το πεδίο συλλέκτη 1"]
[{"$f":"INDEX($B$5:$AH$101,ROW()-ROW($A$4),$B$2)","v":"Датчик температури для колекторного поля 1"},"Kollektortemperaturfühler für Kollektorfeld 1","Датчик температури для колекторного поля 1","Sonde de température capteur solaire","Sensore temperatura collettore per campo collettore 1","Solfangerføler for solfangerfelt 1","Collectorvoeler voor collectorveld 1","Sonda de temperatura de colector para campo de colectores 1","Kolektör alanı 1 için kolektör sensörü","1-es kollektormező hőmérséklet-érzékelője","Датчик температуры коллектора для коллекторного поля 1","Collector temperature sensor for collector field 1","Kollektori temperatuuriandur kollektori välja jaoks 1","1. kolektora lauka kolektora temperatūras sensors","Kolektoriaus temperatūros jutiklis kolektoriaus laukui 1","Kollektorgivare för kollektorfält 1","Kollektortemperaturføler for kollektorfelt 1","Czujnik temperatury kolektora 1","Teplotní čidlo kolektoru pro kolektorové pole 1","Kolektorski osjetnika za kolektorsko polje 1","Snímač teploty kolektora pre kolektorové pole 1","Senzor din panoul colector pentru câmpul colector 1","Temperaturni senzor kolektorja za polje kolektorja 1","Kolektorski senzor za polje kolektora 1","Sensor do coletor para campo do coletor 1","Температурен датчик на колектора за колекторно поле 1","Keräinkentän 1 keräimen lämpötila-anturi","Sensori i temperaturës së kolektorit për fushën e kolektorit 1","Сензор за температура на колекторот за поле на колекторот 1","콜렉터 필드 1용 콜렉터 온도 센서","集热器阵列 1 的集热器温度传感器","集能區 1 集能溫度感應器","مستشعر درجة حرارة المُجَّمع لنطاق المجمع 1‏","Αισθητήρας θερμοκρασίας συλλέκτη για το πεδίο συλλέκτη 1"]
[{"$f":"INDEX($B$5:$AH$101,ROW()-ROW($A$4),$B$2)","v":"Датчик для вимірювання внеску"},"Solarertragsfühler","Датчик для вимірювання внеску","Sonde rendement solaire","Sensore di resa solare","Føler for måling af udbytte","Zonneopbrengstvoeler","Sonda prod. solar","Verim sensörü","Szolárhozam-érzékelő","Датчик вклада солн.энергии","Solar yield sensor","Päikeseenergia tulemi andur","Solārā guvuma sensors","Saulės energijos išeigos jutiklis","Givare för energimätning","Solarutbytteføler","Czujnik uzysku solarnego","Čidlo k měření zisku","Osjetnik solarnog prinosa","Snímač solárneho zisku","Senzor de absorbţie a energiei solare","Senzor solarnega donosa","Senzor za merenje dobitaka","Sensor de rendimento solar","Датчик за измерване на приноса","Aurinkoenergian tuoton anturi","Sensori i gjeneratorit diellor","Сензор за соларниот принос","솔라 산출량 센서","太阳能得热量传感器","太陽能產能感應器","مستشعر إنتاج الطاقة الشمسية","Αισθητήρας ηλιακής απόδοσης"]
[{"$f":"INDEX($B$5:$AH$101,ROW()-ROW($A$4),$B$2)","v":"Фактичне значення входу ШІМ і задане значення виходу ШІМ насоса 1\n(лише у поєднанні з геліостанцією VMS 70)"},"PWM Istwert-Eingang und Sollwert-Ausgang von PWM Pumpe 1\n(nur in Verbindung mit Solarstation VMS 70)","Фактичне значення входу ШІМ і задане значення виходу ШІМ насоса 1\n(лише у поєднанні з геліостанцією VMS 70)","Pompe modulante : valeur actuelle et consigne du signal PWM, uniquement avec module solaire VMS 70","Ingresso valore nominale PWM e uscita set-point della pompa PWM 1\n(solo insieme alla stazione solare VMS 70)","PWM fakt. værdi indgang og nominel værdi udgang fra PWM pumpe 1\n(kun i forbindelse med solarstation VMS 70)","PBM actuele waarde-ingang en gewenste waarde-uitgang van PBM pomp 1\n(alleen in combinatie met zonnemodule VMS 70)","PWM entrada de valor real y salida de valor nominal de PWM bomba 1\n(solo en combinación con estación solar VMS 70)","PWM pompası 1 PWM gerçek değer girişi ve itibari değer çıkışı\n(sadece VMS 70 güneş enerjisi istasyonu ile bağlantılı olarak)","PWM tényleges érték bemenete és 1. szivattyú PWM előírt érték kimenete\n(csak a VMS 70 szolárállomással együtt)","Вход фактического значения и выход расчетного значения ШИМ насоса 1 с ШИМ-управлением\n(только в комбинации с насосной группой гелиосистемы VMS 70)","PWM actual value input and target value output of PWM pump 1\n(only in conjunction with VMS 70 solar pump unit)","PWM (impulsilaiusmodulatsiooni) pumba 1 impulsilaiusmodulatsiooni tegeliku väärtuse sisend ja nimiväärtuse väljund\n(ainult koos solaarjaamaga VMS 70)","PWM ieejas faktiskā vērība un PWM 1. sūkņa izejas noteiktā vērtība\n(tikai savienojumā ar solāro staciju VMS 70)","PWM siurblio 1 tikrųjų verčių įėjimas ir nustatytųjų verčių išėjimas\n(tik kartu su saulės energijos stotele VMS 70)","Pulsviddmodulering ärvärde-ingång och börvärde-utgång från pulsviddmodulering pump 1\n(endast i kombination med solstation VMS 70)","Inngang for faktisk PWM-verdi og utgang for beregnet verdi for PWM-pumpe 1\n(bare i kombinasjon med solarstasjon VMS 70)","Modulacja pulsacyjna (PWM) - wartość rzeczywista na wejściu i wartość zadana na wyjściu pompy PWM 1\n(tylko w połączeniu ze stacją solarną VMS 70)","Vstup skutečné hodnoty a výstup požadované hodnoty pulzně šířkové modulace čerpadla pulzně šířkové modulace 1\n(pouze ve spojení se solární čerpadlovou skupinou VMS 70)","Stvarna vrijednost ulaza i zadana vrijednost izlaza impulsa s modulacijom crpke 1\n(samo u kombinaciji s solarnom stanicom VMS 70)","PWM vstup skutočnej hodnoty a výstup požadovanej hodnoty PWM čerpadlo 1\n(len v spojení so solárnou stanicou VMS 70)","Valoarea reală de intrare PWM şi valoarea nominală de ieşire a pompei PWM 1\n(numai în combinaţie cu staţia pentru circuitul solar VMS 70)","Vhodna dejanska vrednost pulznoširinske modulacije in izhodna želena vrednost pulznoširinske modulacije črpalke 1\n(samo v povezavi s solarno postajo VMS 70)","Stvarna vrednost ulaza i potrebna vrednost izlaza za pulsirajuću modulaciju pumpe sa pulsirajućom modulacijom 1\n(samo u kombinaciji sa solarnom stanicom VMS 70)","PWM entrada de valor atual e saída de valor nominal da bomba PWM 1\n(apenas em conjunto com estação solar VMS 70)","Импулсно лентова модулация действителна стойност вход и зададена стойност изход на помпа за импулсно-лентова модулация 1\n(само във връзка със система от слънчеви колектори VMS 70)","PWM-pumpun 1 PWM:n tulon oloarvo ja lähdön tavoitearvo \n(vain kun aurinkolämpöjärjestelmän putkistoyksikkö VMS 70)","Hyrja e vlerës aktuale të modulit të gjerësisë së pulsit dhe dalja e vlerës nominale të modulit të gjerësisë së pulsit të pompës 1\n(Vetëm në lidhje me stacionin diellor VMS 70)","PWM влез за моментална вредност и излез за зададена вредност од PWM пумпа 1\n(само во поврзување со соларна станица VMS 70)","PWM 펌프 1의 PWM 실제값 입력 및 규정값 출력\n(솔라 스테이션 VMS 70과 결합해서만)","PWM 泵 1 的 PWM 实际值输入端和标准值输出端\n(仅搭配太阳能站 VMS 70 时)","PWM 幫浦 1 的 PWM 實際值輸入和標準值輸出 \n（僅限搭配太陽能站 VMS 70）","القيمة المقررة لدخل المضخة PWM والقيمة المقررة لخرج المضخة PWM‏ 1\n(فقط بالارتباط مع المحطة الشمسية VMS 70)","Είσοδος πραγματικής τιμής και έξοδος ονομαστικής τιμής PWM της αντλίας PWM 1\n(μόνο σε συνδυασμό με τον ηλιακό σταθμό VMS 70)"]
[]
[{"$f":"INDEX($B$5:$AH$101,ROW()-ROW($A$4),$B$2)","v":"Багатофункціональний вихід"},"Multifunktionsausgang","Багатофункціональний вихід","Sortie multi-fonction","Uscita multifunzione","Multifunktionsudgang","Multifunctionele uitgang","Salida multifunción","Çok fonksiyonlu çıkış","Többfunkciós kimenet","Многофункциональный выход","Multi-function output","Mitmefunktsiooniline väljund","Daudzfunkciju izeja","Daugiafunkcis išėjimas","Multifunktionsutgång","Multifunksjonsutgang","Wyjście wielofunkcyjne","Multifunkční výstup","Izlaz višefunkcijskog releja","Multifunkčný výstup","Ieşire multifuncţională","Večnamenski izhod","Multifunkcionalni izlaz","Saída multifunções","Многофункционален изход","Monitoimilähtö","Dalja shumëfunksionale","Мултифункционален излез","다기능 출력부","多功能输出端","多功能輸出","مخرج متعدد الوظائف","Έξοδος πολλαπλών λειτουργιών"]
[{"$f":"INDEX($B$5:$AH$101,ROW()-ROW($A$4),$B$2)","v":"Насос завантаження або 3-ходовий перемикальний клапан, перемикання на накопичувач ГВ"},"Ladepumpe oder 3-Wege Ventil Umschaltung zu WW-Speicher","Насос завантаження або 3-ходовий перемикальний клапан, перемикання на накопичувач ГВ","Pompe de charge ou V3V pour basculement en mode production ECS","Pompa carico o valvola 3 vie deviazione su boiler acqua calda","Ladepumpe eller 3-vejs ventil omskiftning til varmtvandsbeholder","Laadpomp of 3-wegklep omschakeling naar WW-boiler","Bomba de carga o cambio de válvula de tres vías a acumulador de agua caliente","Sıcak su boylerine şarj pompası veya 3 yollu vana geçişi","Töltőszivattyú vagy 3-utas szelep melegvíztárolóra átkapcsoláshoz","Насос загрузки или 3-ходовой клапан, переключение на накопитель горячей воды","Charging pump or three-way valve switch to DHW cylinder","Laadimispump või 3-suunaline ventiil ümberlülitamiseks sooja vee mahutile","Uzpildes sūknis vai 3 virzienu vārsts pārslēgšanai uz KŪ boileru","Pildymo siurblio arba 3-eigio vožtuvo perjungimas į KV kaupiamąjį šildytuvą","Laddningspump eller 3-vägsventil omkoppling till varmvattenberedare","Ladepumpe eller treveisventil-omkobling til varmtvannstank","Pompa ładująca lub 3-drożny zawór przełączający na zasobnik ciepłej wody","Nabíjecí čerpadlo nebo trojcestný ventil přepínání na zásobník TV","Prebacivanje crpke za punjenje ili 3-putnog ventila na spremnik TV","Nabíjacie čerpadlo alebo 3-cestný ventil prepínanie k zásobníku teplej vody","Comutare pompă de încărcare sau ventil cu 3 căi la boilerul de AC","Preklop polnilne črpalke ali 3-smernega ventila na zalogovnik tople vode","Pumpa za punjenje ili ukopčavanje sa 3-krakim ventilom za rezervoar za toplu vodu","Bomba de carga ou válvula de 3 vias comutação para acumulador de água quente","Зареждаща помпа или 3-пътен вентил превключване към водосъдържател ГВ","Syöttöpumpun tai 3-tieventtiilin vaihtokytkentä lämminvesivaraajaan","Pompa e ngarkimit ose kalimi i valvulit me 3 drejtime në rezervuarin e ujit të ngrohtë","Пумпа за полнење или 3-крак вентил за префрлање во резервоарот за ТВ","충진 펌프 또는 3행정 밸브를 온수 저장 탱크로 전환","将加热泵或 3 通阀切换到热水储水罐","充電幫浦或 WW 儲存裝置 3 通閥門切換裝置","مضخة الشحن أو تحويل الصمام ثلاثي المسار إلى خزان الماء الساخن","Εναλλαγή αντλίας φόρτισης ή τρίοδης βαλβίδας προς ταμιευτήρα ζεστού νερού"]
[{"$f":"INDEX($B$5:$AH$101,ROW()-ROW($A$4),$B$2)","v":"Перемикальний клапан геліонакопичувача"},"Umschaltventil Solarspeicher","Перемикальний клапан геліонакопичувача","V3V solaire","Valvola deviatrice boiler solare","Omskiftningsventil solarbeholder","Omschakelventiel zonneboiler","Válvula de conmutación acumulador solar","Güneş enerjisi boyleri geçiş vanası","Szolártároló váltószelepe","Переключающий клапан водонагревателя гелиоустановки","Solar cylinder diverter valve","Solaarmahuti ümberlülitusventiil","Solārās tvertnes pārslēgšanas vārsts","Saulės energijos kaupiamojo šildytuvo perjungimo vožtuvas","Omkopplingsventil solackumulator","Omkoblingsventil solbeholder","Zawór przełączający zasobnika solarnego","Přepínací ventil solární zásobník","Preklopni ventil solarnog spremnika","Prepínací ventil solárny zásobník","Vană deviatoare boiler solar","Preklopni ventil za solarni zalogovnik","Preklopni ventil solarnog rezervoara","Válvula de transferência acumulador solar","Превключващ вентил соларен бойлер","Aurinkoenergian varaajan vaihtoventtiili","Valvul kthimi i rezervuarit diellor","Вентил за префрлање на соларниот резервоар","솔라 실린더 전환 밸브","太阳能储水罐转换阀","太陽能儲存裝置切換閥門","صمام التحويل الخاص بالخزان الشمسي","Βαλβίδα εναλλαγής ηλιακού ταμιευτήρα"]
[]
[{"$f":"INDEX($B$5:$AH$101,ROW()-ROW($A$4),$B$2)","v":"Теплогенератор eBUS"},"eBUS Wärmeerzeuger","Теплогенератор eBUS","Générateur de chaleur eBUS","Generatore termico eBUS","eBUS varmegiver","eBUS-warmteopwekker","Generador de calor eBUS","e-Veri yolu ısı üreticisi","eBUS hőtermelő","Теплогенератор eBUS","eBUS heat generator","eBUS soojatootja","eBUS siltumģenerators","„eBUS“ šilumos generatorius","eBUS värmegenerator","eBUS-varmegenerator","Magistrala cyfrowa eBUS urządzenia grzewczego","eBUS zdroj tepla","eBUS generator topline","eBUS tepelný generátor","Generator de căldură eBUS","eBUS ogrevalne naprave","eBUS generator toplote","eBUS Gerador de calor","eBUS генератор на топлина","eBUS-väylällinen lämmitin","eBUS i gjeneratorit të nxehtësisë","eBUS топлотен генератор","eBUS 보일러","eBUS 供热装置","eBUS 發熱器","مولد الحرارة eBUS‏","Καυστήρας eBUS"]
[{"$f":"INDEX($B$5:$AH$101,ROW()-ROW($A$4),$B$2)","v":"Звичайний теплогенератор"},"Konventioneller Wärmeerzeuger","Звичайний теплогенератор","Générateur de chaleur conventionnel","Generatore termico convenzionale","Konventionel varmegiver","Conventionele warmteopwekker","Generador de calor convencional","Konvansiyonel ısı üreticisi","Hagyományos hőtermelő","Обычный теплогенератор","Conventional heat generator","Konventsionaalne soojatootja","Konvencionāls siltumģenerators","Tradicinis šilumos generatorius","Konventionell värmegenerator","Konvensjonell varmegenerator","Konwencjonalne urządzenie grzewcze","Konvenční zdroj tepla","Konvencionalni generator topline","Konvenčný tepelný generátor","Generator de căldură convenţional","Običajna ogrevalna naprava","Konvencionalni generator toplote","Gerador de calor convencional","Конвенционален генератор на топлина","Perinteinen lämmitin","Gjeneratori konvencional i nxehtësisë","Конвенционален топлотен генератор","기존 보일러","传统供热装置","傳統發熱器","مولد الحرارة التقليدي","Συμβατικός καυστήρας"]
[{"$f":"INDEX($B$5:$AH$101,ROW()-ROW($A$4),$B$2)","v":"geoTHERM 3 кВт"},"geoTHERM 3 kW","geoTHERM 3 кВт","geoTHERM 3 kW","geoTHERM 3 kW","geoTHERM 3 kW","geoTHERM 3 kW","geoTHERM 3 kW","geoTHERM 3 kW","geoTHERM 3 kW","geoTHERM 3 кВт","geoTHERM 3 kW","geoTHERM 3 kW","geoTHERM 3 kW","geoTHERM 3 kW","geoTHERM 3 kW","geoTHERM 3 kW","geoTHERM 3 kW","geoTHERM 3 kW","geoTHERM 3 kW","geoTHERM 3 kW","geoTHERM 3 kW","geoTHERM 3 kW","geoTHERM 3 kW","geoTHERM 3 kW","geoTHERM 3 kW","geoTHERM 3 kW","geoTHERM 3 kW","geoTHERM 3 kW","geoTHERM 3 kW","geoTHERM 3 kW","geoTHERM 3 kW","geoTHERM 3 كيلوواط","geoTHERM 3 kW"]
[{"$f":"INDEX($B$5:$AH$101,ROW()-ROW($A$4),$B$2)","v":"Тепловий насос (див. коментар)"},"Wärmepumpe (siehe Kommentar)","Тепловий насос (див. коментар)","PAC (voir commentaire)","Pompa di calore (vedere commento)","Varmepumpe (se kommentar)","Warmtepomp (zie commentaar)","Bomba de calor (ver comentario)","Isı pompası (bkz. Açıklama)","Hőszivattyú (lásd a megjegyzést)","Тепловой насос (см. комментарий)","Heat pump (see comment)","Soojuspump (vt kommentaari)","Siltumsūknis (skatiet komentāru)","Šilumos siurblys (žr. komentarą)","Värmepump (se kommentar)","Varmepumpe (se kommentar)","Pompa ciepła (patrz komentarz)","Tepelné čerpadlo (viz komentář)","Dizalica topline (vidi komentar)","Tepelné čerpadlo (pozri komentár)","Pompă de încălzire (consultaţi comentariul)","Toplotna črpalka (glejte komentar)","Toplotna pumpa (videti komentar)","Bomba de calor (ver comentário)","Топлинна помпа (вж. коментара)","Lämpöpumppu (katso kommentti)","Pompa e ngrohjes (shihni komentet)","Топлинска пумпа (види коментар)","히트 펌프(코멘트 참조)","热泵 (见备注)","加熱幫浦（請參閱評論）","المضخة الحرارية (انظر الشرح)","Αντλία θερμότητας (βλέπε σχόλιο)"]
[{"$f":"INDEX($B$5:$AH$101,ROW()-ROW($A$4),$B$2)","v":"Моноблок aroTHERM"},"aroTHERM Monoblock","Моноблок aroTHERM","aroTHERM Monoblock","Monoblocco aroTHERM","aroTHERM Monoblock","aroTHERM Monoblock","aroTHERM Monobloc","aroTHERM Monoblock","aroTHERM monoblokk","Моноблок aroTHERM","aroTHERM Monoblock","aroTHERM Monoblock","aroTHERM monobloks","aroTHERM monoblokas","aroTHERM Monoblock","aroTHERM monoblokk","Monoblok aroTHERM","aroTHERM Monoblock","aroTHERM monoblock","aroTHERM monoblok","Monobloc aroTHERM","aroTHERM monoblok","aroTHERM monoblok","aroTHERM monobloco","aroTHERM моноблок","aroTHERM Monoblock","aroTHERM monobllok","aroTHERM моноблок","aroTHERM 모노블록","aroTHERM 整体式燃烧器","aroTHERM 單體","الطراز aroTHERM Monoblock‏","aroTHERM μονομπλόκ"]
[]
[{"$f":"INDEX($B$5:$AH$101,ROW()-ROW($A$4),$B$2)","v":"Конфігурація системи"},"Systemkonfiguration","Конфігурація системи","Configuration système","Configurazione impianto","Systemkonfiguration","Systeem Configuratie","Configuración del sistema","Sistem uyarlanması","Rendszerkonfiguráció","Конфигурация системы","System configuration","Süsteemikonfiguratsioon","Sistēmas konfigurācija","Sistemos konfigūracija","Systemkonfiguration","Systemkonfigurasjon","Konfiguracja systemu","Konfigurace systému","Konfiguracija sustava","Konfigurácia systému","Config sistemului","Konfiguracija sistema","Sistemska konfiguracija","Configuração do sistema","Системна конфигурация","Järjestelmäkonfiguraatio","Konfigurimi i sistemit","Системска конфигурација","시스템 컨피규레이션","系统配置","系統配置","تهيئة النظام","Διαμόρφωση συστήματος"]
[{"$f":"INDEX($B$5:$AH$101,ROW()-ROW($A$4),$B$2)","v":"Гібридна система"},"Hybridsystem","Гібридна система","Système hybride","Impianto ibrido","Hybridsystem","Hybride systeem","Sistema híbrido","Hibrit sistem","Hibridrendszer","Гибридная система","Hybrid system","Hübriidsüsteem","Hibrīda sistēma","Hibridinė sistema","Hybridsystem","Hybridsystem","System hybrydowy","Hybridní systém","Hibridni sustav","Hybridný systém","Sistem hibrid","Hibridni sistem","Hibridni sistem","Sistema híbrido","Хибридна система","Hybridijärjestelmä","Sistemi hibrid","Хибриден систем","하이브리드 시스템","混合系统","混合系統","النظام الهجين","Υβριδικό σύστημα"]
[{"$f":"INDEX($B$5:$AH$101,ROW()-ROW($A$4),$B$2)","v":"Моноенергетична система"},"Monoenergetisches System","Моноенергетична система","Système Mono-enérgétique","Impianto monoenergetico","Monoenergetisk system","Mono-energetisch systeem","Sistema monoenergético","Tek enerjili sistem","Monoenergiájú rendszer","Моноэнергетическая система","Monoenergetic system","Monoenergeetiline süsteem","Monoenerģētiska sistēma","Monoenergetinė sistema","Monoenergetiskt system","Monoenergetisk system","System monoenergetyczny","Monoenergetický systém","Monoenergetski sustav","Monoenergetický systém","Sistem monoenergetic","Monoenergetski sistem","Monoenergetski sistem","Sistema monoenergético","Моноенергийна система","Monoenerginen järjestelmä","Sistemi monoenergjitik","Моноенергетски систем","단일 에너지 시스템","单能量系统","單能系統","النظام أحادي الطاقة","Μονοενεργειακό σύστημα"]
[{"$f":"INDEX($B$5:$AH$101,ROW()-ROW($A$4),$B$2)","v":"Розділення системи з модулем WT"},"Systemtrennung mit WT-Modul","Розділення системи з модулем WT","Système découplé","Separazione sistema con modulo WT","Systemseparation med WT-modul","Systeemscheiding met WT-module","Separación de sistema con módulo WT","WT modülüyle sistem ayrılması","Rendszerszétválasztás WT modullal","Разделение системы с модулем WT","System sep. with heat exch. module","Süsteemi eraldamine WT-mooduli abil","Sistēmas atdalīšana ar WT moduli","Sistemos atskyrimas šilumokaičio moduliu","Systemskiljning med WT-modul","Systemseparasjon med varmevekslermodul","System separacji z modułem wymiennika ciepła","Systémové oddělení s modulem WT","Odvajanje sustava s modulom izmjenjivača topline","Odpojenie systému s WT modulom","Separare sistem cu modulul SC","Ločitev sistema z modulom toplotnega izmenjevalnika","Razdvajanje sistema sa modulom izmenjivača toplote","Separação do sistema com módulo WT","Разделяне на системата с WT модул","Järjestelmän erotus lämmönvaihdinmoduulilla","Shkëputja e sistemit me modul WT","Исклучување на системот со модул за ТИ","WT 모듈을 이용한 시스템 분리","通过 WT 模块断开系统","配備 WT 模組的系統分離裝置","فصل النظام باستخدام موديول WT‏","Διαχωρισμός συστήματος με μονάδα WT"]
[]
[{"$f":"INDEX($B$5:$AH$101,ROW()-ROW($A$4),$B$2)","v":"Приготування гарячої води"},"Warmwasserbereitung","Приготування гарячої води","Préparateur ECS","Produzione di acqua calda","Varmtvandsproduktion","Warmwaterbereiding","Producción de agua caliente sanitaria","Sıcak kullanım suyu","Melegvízkészítés","Приготовление горячей воды","DHW preparation","Sooja vee valmistamine","Karstā ūdens sagatavošana","Karšto vandens ruošimas","VV-drift","Varmtvannsberedning","Podgrzewanie ciepłej wody","Ohřev teplé vody","Priprema tople vode","Príprava teplej vody","Prepararea apei calde","Priprava tople vode","Priprema tople vode","Produção de água quente","Производство на топла вода","Lämpimän käyttöveden valmistus","Përgatitja e ujit të ngrohtë","Подготовка на топла вода","온수 생성장치","热水制备","熱水裝置","تحضير الماء الساخن","Παραγωγή ζεστού νερού"]
["гаряча вода відсутня","kein Warmwasser","гаряча вода відсутня","Pas d'ECS","nessuna acqua calda","Intet varmtvand","Geen warm water","sin agua caliente sanitaria","sıcak su yok","Nincs melegvíz","без горячей воды","no DHW","soe vesi puudub","Nav karstā ūdens","nėra karšto vandens","Inget varmvatten","Ikke varmtvann","Brak ciepłej wody","Žádná teplá voda","nema tople vode","Žiadna teplá voda","Fără apă caldă","ni tople vode","nema tople vode","sem água quente","няма топла вода","Ei lämmintä käyttövettä","nuk ka ujë të ngrohtë","нема топла вода","온수 없음","无热水","無熱水","لا يوجد ماء ساخن","Χωρίς παραγωγή ζεστού νερού"]
["Регулювання через теплогенератор","Regelung durch Wärmeerzeuger","Регулювання через теплогенератор","Contrôlé par le générateur","Regolazione tramite generatore termico","Styring via varmegiver","Regeling door warmteopwekker","Regulación mediante generador de calor","Isı üreticisi üzerinden ayarlama","Szabályozás a hőtermelővel","Регулирование через теплогенератор","controlled by heat generator","Reguleerimine soojatootja abil","Regulēšana ar siltumģeneratoru","Reguliavimas šilumos generatoriumi","Reglering med värmegenerator","Regulering via varmegenerator","Regulacja przez urządzenie grzewcze","Regulace pomocí zdroje tepla","Regulacija putem generatora topline","Regulácia tepelným generátorom","Reglare prin intermediul generatorului de căldură","Regulacija z ogrevalno napravo","Regulacija putem generatora toplote","Regulação através do gerador de calor","Регулиране чрез генератор на топлина","Säätö lämmittimellä","Rregullimi përmes gjeneratorit të nxehtësisë","Регулирање со топлотен генератор","보일러를 통한 제어","通过供热装置控制","透過發熱器調節","التحكم عن طريق مولد الحرارة","Ρύθμιση μέσω καυστήρα"]
["Регулювання через VRC 720","Regelung durch VRC 720","Регулювання через VRC 720","Contrôlé par VRC 720","Regolazione tramite VRC 720","Styring via VRC 720","Regeling door VRC 720","Regulación mediante VRC 720","VRC 720 üzerinden ayarlama","Szabályozás VRC 720 egységgel","Регулирование через VRC 720","controlled by VRC 720","Reguleerimine VRC 720 abil","Regulēšana ar VRC 720","Reguliavimas VRC 720","Reglering med VRC 720","Regulering via VRC 720","Regulacja przez VRC 720","Regulace pomocí VRC 720","Regulacija putem VRC 720","Regulácia prostredníctvom VRC 720","Reglare prin intermediul VRC 720","Regulacija z VRC 720","Regulacija putem VRC 720","Regulação através do VRC 720","Регулиране чрез VRC 720","Säätö VRC 720:llä","Rregullimi përmes VRC 720","Регулирање со VRC 720","VRC 720을 통한 제어","通过 VRC 720 控制","透過 VRC 720 調節","التحكم عن طريق النظام VRC 720‏","Ρύθμιση μέσω VRC 720"]
["Регулювання частково через опалювальний прилад*","Regelung teilweise durch Heizgerät*","Регулювання частково через опалювальний прилад*","Partiellement contrôlé par la chaudière*","Regolazione in parte tramite apparecchio di risc.*","Styring delvis gennem kedel*","Regeling deels door CV-toestel*","Regulación parcialmente mediante caldera*","Ayarlama kısmen ısıtma cihazı üzerinden*","Szabályozás részben fűtőkészülékkel*","Регулирование частично через отопительный аппарат*","controlled partly by boiler*","Reguleerimine osaliselt kütteseadme abil*","Daļēja regulēšana ar sildierīci*","Reguliavimas iš dalies šildytuvu*","Delvis reglering med värmeaggregat*","Delvis regulering via varmeapparat*","Regulacja częściowo przez kocioł grzewczy*","Regulace částečně pomocí kotle k vytápění*","Djelomična regulacija putem uređaja za grijanje*","Regulácia čiastočne ohrevným zariadením*","Reglare parţială prin intermediul aparatului de încălzire*","Regulacija delno z ogrevalno napravo*","Regulacija delimično putem uređaja za grejanje*","Regulação parcialmente através do aquecedor*","Регулиране частично чрез отоплителен уред*","Säätö osittain lämmityslaitteella*","Rregullimi pjesërisht përmes pajisjes ngrohëse","Делумно регулирање со греен уред*","보일러를 통한 부분 제어*","通过燃气采暖热水炉*部分控制","部分透過暖器* 調節","التحكم جزئياً عن طريق السخان*","Ρύθμιση εν μέρει μέσω συσκευής θέρμανσης*"]
["лише з теплогенератором","nur mit Wärmeerzeuger","лише з теплогенератором","Uniquement avec le générateur","solo con generatore termico","Kun med varmegiver","Alleen met warmteopwekker","solo con generador de calor","sadece ısı üreticisi ile","csak hőtermelővel","только с теплогенератором","with heat generator only","ainult koos soojatootjaga","tikai ar siltumģeneratoru","tik su šilumos generatoriumi","Endast med värmegenerator","Bare med varmegenerator","tylko za pomocą urządzenia grzewczego","Pouze se zdrojem tepla","samo s generatorom topline","Len s tepelným generátorom","numai cu generator de căldură","samo z ogrevalno napravo","samo sa generatorom toplote","só com gerador de calor","само с генератор на топлина","Vain lämmittimellä","vetëm me gjeneratorin e nxehtësisë","само со топлотен генератор","보일러를 통해서만","仅带供热装置","僅配備發熱器","فقط عن طريق مولد الحرارة","Μόνο με καυστήρα"]
["лише з тепловим насосом","nur mit Wärmepumpe","лише з тепловим насосом","Uniquement avec PAC","solo con pompa di calore","Kun med varmepumpe","Alleen met warmtepomp","solo con bomba de calor","sadece ısı pompası ile","csak hőszivattyúval","только с тепловым насосом","with heat pump only","ainult koos soojuspumbaga","tikai ar siltumsūkni","tik su šilumos siurbliu","Endast med värmepump","Bare med varmepumpe","tylko za pomocą pompy ciepła","Pouze s tepelným čerpadlem","samo s dizalicom topline","Len s tepelným čerpadlom","numai cu pompă de încălzire","samo s toplotno črpalko","samo sa toplotnom pumpom","só com bomba de calor","само с топлинна помпа","Vain lämpöpumpulla","vetëm me pompën e ngrohjes","само со топлинска пумпа","히트 펌프를 통해서만","仅带热泵","僅配備加熱幫浦","فقط عن طريق المضخة الحرارية","Μόνο με αντλία θερμότητας"]
["лише з додатковим опалювальним приладом","nur mit Zusatzheizgerät","лише з додатковим опалювальним приладом","Uniquement avec chaudière d'appoint","solo con apparecchio di riscaldamento supplementare","Kun med supplerende varmegiver","Alleen met hulpverwarming","solo con caldera de apoyo","sadece ek ısıtma cihazı ile","csak kiegészítő fűtőkészülékkel","только с дополнительным тепловым аппаратом","with additonal boiler only","ainult koos lisakütteseadmega","tikai ar papildu sildierīci","tik su papildomu šildytuvu","Endast med tillsatsvärmeaggregat","Bare med tilleggsvarmer","tylko za pomocą dodatkowego kotła grzewczego","Pouze s přídavným kotlem","samo s dodatnim uređajem za grijanje","Len s prídavným ohrevným zariadením","numai cu aparat de încălzire suplimentar","samo z dodatno ogrevalno napravo","samo sa dodatnim uređajem za grejanje","só com aquecedor adicional","само с допълнителен отоплителен уред","Vain lisälämmityslaitteella","vetëm me pajisjen ngrohëse shtesë","само со дополнителен грејач","보조 보일러를 통해서만","仅带辅助供热装置","僅配備輔助暖器","فقط عن طريق السخان الإضافي","Μόνο με πρόσθετη συσκευή θέρμανσης"]
["з ТН і додатковим нагрівачем","mit WP und Zusatzheizung","з ТН і додатковим нагрівачем","Avec PAC et appoint","con pompa di calore e riscaldamento supplementare","Med WP og supplerende varme","Met WP en hulpverwarming","con bomba de calor y apoyo externo","ısı pompası ve takviye ısıtıcı ile","HSZ-szel és kiegészítő fűtéssel","с WP и дополнительным догревом","with heat pump and add. heater","koos soojuspumba ja lisaküttega","ar WP un papildu apkuri","su ŠS ir papildomu šildymu","med värmepump och tillsatsvärme","Med varmepumpe og tilleggsvarmer","za pomocą pompy ciepła i dodatkowego ogrzewania","S WP a přídavným topením","s dizalicom topline i dodatnim grijanjem","Len s tepelným čerpadlom a prídavným ohrevom","cu pompă de încălzire şi încălzire suplimentară","s toplotno črpalko in dodatnim grelnikom","sa TP i dodatnim grejanjem","com bomba de calor e aquecimento adicional","с WP и допълнително отопление","Lämpöpumpulla ja lisälämmityksellä","me pompën e ngrohjes dhe ngrohje shtesë","со ТП и дополнително греење","WP 및 보조 보일러를 통해","带 WP 和辅助加热装置","配備 WP 和輔助暖器","عن طريق المضخة الحرارية والتسخين الإضافي","Με αντλία θερμότητας και πρόσθετο σύστημα θέρμανσης"]
["з тепловим насосом і опалювальним приладом","mit Wärmepumpe und Heizgerät","з тепловим насосом і опалювальним приладом","Avec PAC et chaudière","con pompa di calore e apparecchio di riscaldamento","Med varmepumpe og kedel","Met warmtepomp en CV-toestel","con bomba de calor y caldera","ısı pompası ve ısıtma cihazı ile","Hőszivattyúval és fűtőkészülékkel","с тепловым насосом и отопительным аппаратом","with heat pump and boiler","koos soojuspumba ja kütteseadmega","ar siltumsūkni un sildierīci","su šilumos siurbliu ir šildytuvu","med värmepump och tillsatsvärme","Med varmepumpe og varmeapparat","za pomocą pompy ciepła i kotła grzewczego","S tepelným čerpadlem a kotlem k vytápění","s dizalicom topline i uređajem za grijanje","S tepelným čerpadlom a ohrevným zariadením","cu pompă de încălzire şi aparat de încălzire","s toplotno črpalko in ogrevalno napravo","sa toplotnom pumpom i uređajem za grejanje","com bomba de calor e aquecedor","с топлинна помпа и отоплителен уред","Lämpöpumpulla ja lämmityslaitteella","me pompën e ngrohjes dhe pajisjen ngrohëse","со топлинска пумпа и греен уред","히트 펌프 및 보일러를 통해","带热泵和燃气采暖热水炉","配備加熱幫浦和暖器","عن طريق المضخة الحرارية والسخان","Με αντλία θερμότητας και συσκευή θέρμανσης"]
[]
[{"$f":"INDEX($B$5:$AH$101,ROW()-ROW($A$4),$B$2)","v":"Кількість опалювальних контурів"},"Anzahl Heizkreise","Кількість опалювальних контурів","Nombre de circuit de chauffage","Numero di circuiti di riscaldamento","Antal varmekredse","Aantal CV-circuits","Número de circuitos de calefacción","Isıtma devresi sayısı","Fűtőkörök száma","Количество отопительных контуров","Number of heating circuits","Küttekontuuride arv","Apkures kontūru skaits","Šildymo kontūrų skaičius","Antal värmekretsar","Antall varmekretser","Liczba obiegów grzewczych","Počet topných okruhů","Broj toplinskih krugova","Počet vyhrievacích okruhov","Numărul de circuite de încălzire","Število ogrevalnih krogotokov","Broj grejnih krugova","Número de circuitos de aquecimento","Брой отоплителни кръгове","Lämmityspiirien lukumäärä","Numri i qarqeve ngrohëse","Број на грејни кола","난방 회로 개수","供暖回路数量","加熱迴路數量","عدد دورات التسخين","Αριθμός κυκλωμάτων θέρμανσης"]
["1 прямий опалювальний контур","1 direkter Heizkreis","1 прямий опалювальний контур","1 Circuit chauffage direct","1 circuito di riscaldamento diretto","1 direkte varmekreds","1 direct CV-circuit","1 circuito de calefacción directo","1 doğrudan ısıtma devresi","1 közvetlen fűtőkör","1 прямой отопительный контур","1 direct heating circuit","1 otsene küttekontuur","1 tiešais apkures kontūrs","1 tiesioginis šildymo kontūras","1 direkt värmekrets","1 direkte varmekrets","1 bezpośredni obieg grzewczy","1 přímý topný okruh","1 direktni toplinski krug","1 priamy vyhrievací okruh","1 circuit de încălzire direct","1 neposredni ogrevalni krogotok","1 direktni grejni krug","1 circuito de aquecimento direto","1 директен отоплителен кръг","1 suora lämmityspiiri","1 qark ngrohës i drejtpërdrejtë","1 директно грејно коло","직접 난방 회로 1","1 个直接供暖回路","1 個直接加熱迴路","1 دورة تسخين مباشرة","1 άμεσο κύκλωμα θέρμανσης"]
["1 прям. і 1 зміш. опалювальний контур","1 dir. & 1 gem. Heizkreis","1 прям. і 1 зміш. опалювальний контур","1 dir. &  1 circuit de chauff. mélangé","1 circuito di riscaldamento dir. e 1 misto","1 dir. & 1 bl. varmekreds","1 dir. & 1 gem. CV-circuits","1 circuito de calefacción dir. & 1 mix.","1 doğ. ve 1 ort. ısıtma devresi","1 közvetlen és 1 kevert fűtőkör","1 прям. и 1 смеш. отопительный контур","1 dir. &  1 mixed heating circuit","1 otsene ja 1 komb. küttekontuur","1 tiešais un 1 kop. apkures kontūrs","1 ties. ir 1 mišr. šildymo kontūras","1 dir. & 1 gem. värmekrets","1 direkte og 1 blandet varmekrets","1 bezpośr. i 1 miesz. obieg grzewczy","1 přímý a 1 smíšený topný","1 dir. & 1 miješ. toplinski krug","1 priamy a 1 zmiešaný vyhrievací okruh","1 circuit de încălzire mixt direct şi 1 circuit de încălzire mixt","1 neposredni & 1 skupni ogrevalni krogotok","1 dir. & 1 meš. grejni krug","1 circuito de aquecimento dir. e 1 misto","1 дир. и 1 см. отоплителен кръг","1 suora ja 1 sekoitettu lämmityspiiri","1 qark ngrohës i drejtpërdrejtë dhe 1 i përzier","1 дир. и 1 меш. грејно коло","직접 난방 회로 1개. & 혼합식 난방 회로 1개","1 个直接混合的供暖回路","1 個直接和 1 個混合加熱迴路","1 دورة تسخين مباشرة وأخرى مختلطة","1 άμεσο & 1 μικτό κύκλωμα θέρμανσης"]
["2 змішані опалювальні контури","2 gemischte Heizkreise","2 змішані опалювальні контури","2 circuits de chauffage mélangés","2 circuiti di riscaldamento misti","2 blandede varmekredse","2 gemengde CV-circuits","2 circuitos de calefacción mixtos","2 karışık ısıtma devresi","2 kevert fűtőkör","2 смешанных отопительных контура","2 mixed heating circuits","2 kombineeritud küttekontuuri","2 jaukti apkures kontūri","2 mišrūs šildymo kontūrai","2 blandade värmekretsar","2 blandede varmekretser","2 mieszane obiegi grzewcze","2 smíšené topné okruhy","2 miješana toplinska kruga","2 zmiešané vyhrievacie okruhy","2 circuite de încălzire mixte","2 mešana ogrevalna krogotoka","2 mešovita grejna kruga","2 circuitos de aquecimento mistos","2 смесени отоплителни кръга","2 sekoitettua lämmityspiiriä","2 qarqe ngrohës të përzier","2 мешани грејни кола","혼합식 난방 회로 2개","2 个混合供暖回路","2 個混合加熱迴路","2 دورة تسخين مختلطة","2 μικτά κυκλώματα θέρμανσης"]
["3 змішані опалювальні контури","3 gemischte Heizkreise","3 змішані опалювальні контури","3 circuits de chauffage mélangés","3 circuiti di riscaldamento misti","3 blandede varmekredse","3 gemengde CV-circuits","3 circuitos de calefacción mixtos","3 karışık ısıtma devresi","3 kevert fűtőkör","3 смешанных отопительных контура","3 mixed heating circuits","3 kombineeritud küttekontuuri","3 jaukti apkures kontūri","3 mišrūs šildymo kontūrai","3 blandade värmekretsar","3 blandede varmekretser","3 mieszane obiegi grzewcze","3 smíšené topné okruhy","3 miješana toplinska kruga","3 zmiešané vyhrievacie okruhy","3 circuite de încălzire mixte","3 mešani ogrevalni krogotoki","3 mešovita grejna kruga","3 circuitos de aquecimento mistos","3 смесени отоплителни кръга","3 sekoitettua lämmityspiiriä","3 qarqe ngrohës të përzier","3 мешани грејни кола","혼합식 난방 회로 3개","3 个混合供暖回路","3 個混合加熱迴路","3 دورات تسخين مختلطة","3 μικτά κυκλώματα θέρμανσης"]
["4 змішані опалювальні контури","4 gemischte Heizkreise","4 змішані опалювальні контури","4 circuits de chauffage mélangés","4 circuiti di riscaldamento misti","4 blandede varmekredse","4 gemengde CV-circuits","4 circuitos de calefacción mixtos","4 karışık ısıtma devresi","4 kevert fűtőkör","4 смешанных отопительных контура","4 mixed heating circuits","4 kombineeritud küttekontuuri","4 jaukti apkures kontūri","4 mišrūs šildymo kontūrai","4 blandade värmekretsar","4 blandede varmekretser","4 mieszane obiegi grzewcze","4 smíšené topné okruhy","4 miješana toplinska kruga","4 zmiešané vyhrievacie okruhy","4 circuite de încălzire mixte","4 mešani ogrevalni krogotoki","4 mešovita grejna kruga","4 circuitos de aquecimento mistos","4 смесени отоплителни кръга","4 sekoitettua lämmityspiiriä","4 qarqe ngrohës të përzier","4 мешани грејни кола","혼합식 난방 회로 4개","4 个混合供暖回路","4 個混合加熱迴路","4 دورات تسخين مختلطة","4 μικτά κυκλώματα θέρμανσης"]
["5 змішаних опалювальних контурів","5 gemischte Heizkreise","5 змішаних опалювальних контурів","5 circuits de chauffage mélangés","5 circuiti di riscaldamento misti","5 blandede varmekredse","5 gemengde CV-circuits","5 circuitos de calefacción mixtos","5 karışık ısıtma devresi","5 kevert fűtőkör","5 смешанных отопительных контуров","5 mixed heating circuits","5 kombineeritud küttekontuuri","5 jaukti apkures kontūri","5 mišrūs šildymo kontūrai","5 blandade värmekretsar","5 blandede varmekretser","5 mieszanych obiegów grzewczych","5 smíšených topných okruhů","5 miješanih toplinskih krugova","5 zmiešaných vyhrievacích okruhov","5 circuite de încălzire mixte","5 mešanih ogrevalnih krogotokov","5 mešovitih grejnih krugova","5 circuitos de aquecimento mistos","5 смесени отоплителни кръга","5 sekoitettua lämmityspiiriä","5 qarqe ngrohës të përzier","5 мешани грејни кола","혼합식 난방 회로 5개","5 个混合供暖回路","5 個混合加熱迴路","5 دورات تسخين مختلطة","5 μικτά κυκλώματα θέρμανσης"]
["6 змішаних опалювальних контурів","6 gemischte Heizkreise","6 змішаних опалювальних контурів","6 circuits de chauffage mélangés","6 circuiti di riscaldamento misti","6 blandede varmekredse","6 gemengde CV-circuits","6 circuitos de calefacción mixtos","6 karışık ısıtma devresi","6 kevert fűtőkör","6 смешанных отопительных контуров","6 mixed heating circuits","6 kombineeritud küttekontuuri","6 jaukti apkures kontūri","6 mišrūs šildymo kontūrai","6 blandade värmekretsar","6 blandede varmekretser","6 mieszanych obiegów grzewczych","6 smíšených topných okruhů","6 miješanih toplinskih krugova","6 zmiešaných vyhrievacích okruhov","6 circuite de încălzire mixte","6 mešanih ogrevalnih krogotokov","6 mešovitih grejnih krugova","6 circuitos de aquecimento mistos","6 смесени отоплителни кръга","6 sekoitettua lämmityspiiriä","6 qarqe ngrohës të përzier","6 мешани грејни кола","혼합식 난방 회로 6개","6 个混合供暖回路","6 個混合加熱迴路","6 دورات تسخين مختلطة","6 μικτά κυκλώματα θέρμανσης"]
["7 змішаних опалювальних контурів","7 gemischte Heizkreise","7 змішаних опалювальних контурів","7 circuits de chauffage mélangés","7 circuiti di riscaldamento misti","7 blandede varmekredse","7 gemengde CV-circuits","7 circuitos de calefacción mixtos","7 karışık ısıtma devresi","7 kevert fűtőkör","7 смешанных отопительных контуров","7 mixed heating circuits","7 kombineeritud küttekontuuri","7 jaukti apkures kontūri","7 mišrūs šildymo kontūrai","7 blandade värmekretsar","7 blandede varmekretser","7 mieszanych obiegów grzewczych","7 smíšených topných okruhů","7 miješanih toplinskih krugova","7 zmiešaných vyhrievacích okruhov","7 circuite de încălzire mixte","7 mešanih ogrevalnih krogotokov","7 mešovitih grejnih krugova","7 circuitos de aquecimento mistos","7 смесени отоплителни кръга","7 sekoitettua lämmityspiiriä","7 qarqe ngrohës të përzier","7 мешани грејни кола","혼합식 난방 회로 7개","7 个混合供暖回路","7 個混合加熱迴路","7 دورات تسخين مختلطة","7 μικτά κυκλώματα θέρμανσης"]
["8 змішаних опалювальних контурів","8 gemischte Heizkreise","8 змішаних опалювальних контурів","8 circuits de chauffage mélangés","8 circuiti di riscaldamento misti","8 blandede varmekredse","8 gemengde CV-circuits","8 circuitos de calefacción mixtos","8 karışık ısıtma devresi","8 kevert fűtőkör","8 смешанных отопительных контуров","8 mixed heating circuits","8 kombineeritud küttekontuuri","8 jaukti apkures kontūri","8 mišrūs šildymo kontūrai","8 blandade värmekretsar","8 blandede varmekretser","8 mieszanych obiegów grzewczych","8 smíšených topných okruhů","8 miješanih toplinskih krugova","8 zmiešaných vyhrievacích okruhov","8 circuite de încălzire mixte","8 mešanih ogrevalnih krogotokov","8 mešovitih grejnih krugova","8 circuitos de aquecimento mistos","8 смесени отоплителни кръга","8 sekoitettua lämmityspiiriä","8 qarqe ngrohës të përzier","8 мешани грејни кола","혼합식 난방 회로 8개","8 个混合供暖回路","8 個混合加熱迴路","8 دورات تسخين مختلطة","8 μικτά κυκλώματα θέρμανσης"]
["9 змішаних опалювальних контурів","9 gemischte Heizkreise","9 змішаних опалювальних контурів","9 circuits de chauffage mélangés","9 circuiti di riscaldamento misti","9 blandede varmekredse","9 gemengde CV-circuits","9 circuitos de calefacción mixtos","9 karışık ısıtma devresi","9 kevert fűtőkör","9 смешанных отопительных контуров","9 mixed heating circuits","9 kombineeritud küttekontuuri","9 jaukti apkures kontūri","9 mišrūs šildymo kontūrai","9 blandade värmekretsar","9 blandede varmekretser","9 mieszanych obiegów grzewczych","9 smíšených topných okruhů","9 miješanih toplinskih krugova","9 zmiešaných vyhrievacích okruhov","9 circuite de încălzire mixte","9 mešanih ogrevalnih krogotokov","9 mešovitih grejnih krugova","9 circuitos de aquecimento mistos","9 смесени отоплителни кръга","9 sekoitettua lämmityspiiriä","9 qarqe ngrohës të përzier","9 мешани грејни кола","혼합식 난방 회로 9개","9 个混合供暖回路","9 個混合加熱迴路","9 دورات تسخين مختلطة","9 μικτά κυκλώματα θέρμανσης"]
[]
[{"$f":"INDEX($B$5:$AH$101,ROW()-ROW($A$4),$B$2)","v":"Спеціальне обладнання"},"Sonderausstattung","Спеціальне обладнання","Equipement spécifique","Dotazione speciale","Specialudstyr","Speciale uitvoering","Equipamiento opcional","Özel donanım","Egyedi kialakítás","Особая комплектация","Special equipment","Erivarustus","Papildu aprīkojums","Specialioji įranga","Specialutrustning","Ekstra tilbehør","Wyposażenie specjalne","Zvláštní vybavení","Posebna oprema","Špeciálna výbava","Dotare specială","Dodatna oprema","Posebna oprema","Equipamento especial","Специално оборудване","Lisävaruste","Pajimet e veçanta","Специјална опрема","옵션 사양","特殊装备","特殊裝備","تجهيز خاص","Ειδικός εξοπλισμός"]
["немає","keine","немає","non","nessuna","Ingen","Geen","ninguno","yok","nincs","нет","none","puudub","nav","nėra","ingen","Ingen","brak","Žádné","nema","žiadna","nimic","brez","nema","nenhuma","няма","Ei mitään","asnjë","нема","없음","无","無","لا يوجد","Κανένας"]
["Приготування гарячої води від геліоустановки","solare Warmwasserbereitung","Приготування гарячої води від геліоустановки","Préparateur ECS Solaire","Produzione di acqua calda con impianto solare","Solar varmtvandsproduktion","Warmwaterbereiding met zonne-energie","producción solar de agua caliente sanitaria","güneş enerjisi takviyeli sıcak kullanım suyu","szolár melegvízkészítés","Приготовление горячей воды от гелиоустановки","solar DHW preparation","solaarne sooja vee valmistamine","solārā siltā ūdens sagatavošana","Karšto vandens ruošimas naudojant saulės energiją","solbaserad varmvattenberedning","Solar varmtvannsberedning","solarne podgrzewanie ciepłej wody","Solární ohřev teplé vody","solarna priprema tople vode","Solárna príprava teplej vody","Preparare solară a apei calde","solarno podprta priprava tople vode","solarno pripremanje tople vode","produção de água quente solar","соларно производство на топла вода","Lämpimän käyttöveden valmistus aurinkoenergialla","përgatitja e ujit të ngrohtë në solar","соларна подготовка на топла вода","솔라 온수 생성장치","太阳能热水制备","太陽能熱水裝置","تحضير الماء الساخن الشمسي","Ηλιακή παραγωγή ζεστού νερού"]
["Підтримка опалення від геліосистеми","solare Heizungsunterstützung","Підтримка опалення від геліосистеми","Appoint chauffage solaire","Integrazione solare del riscaldamento","Sol understøttelse varme","Verwarmingsondersteuning met zonne-energie","apoyo solar a calefacción","güneş enerjisi takviyeli ısıtma","napenergiával történő fűtésrásegítés","Поддержка отопления от гелиоустановки","solar heating support","solaarne küttetoetus","solārais apkures atbalsts","Šildymo sistemos palaikymas saulės energija","solbaserat värmestöd","Solvarmestøttet oppvarming","solarne wspomaganie instalacji grzewczej","Solární podpora vytápění","solarno poduprto grijanje","Solárna podpora ohrevu","Susţinere solară a căldurii","solarno podprto ogrevanje","solarna podrška grejanju","auxílio de aquecimento solar","слънчево подпомагане на отоплението","Aurinkoenergialla toimiva osalämmitys","Nxitja e ngrohjes diellore","соларна помош за греење","솔라 난방 보조장치","太阳能供暖支持","太陽能加熱輔助","دعم التسخين الشمسي","Ηλιακή υποστήριξη θέρμανσης"]
["allSTOR","allSTOR","allSTOR","allSTOR","allSTOR","allSTOR","allSTOR","allSTOR","allSTOR","allSTOR","allSTOR","allSTOR","allSTOR","allSTOR","allSTOR","allSTOR","allSTOR","allSTOR","allSTOR","allSTOR","allSTOR","allSTOR","allSTOR","allSTOR","allSTOR","allSTOR","allSTOR","allSTOR","allSTOR","allSTOR","allSTOR","allSTOR","الطراز allSTOR‏","allSTOR"]
["1 Геліонакопичувач","1 Solarspeicher","1 Геліонакопичувач","1 ballon solaire","1 Bollitore solare","1 Solvarmebeholder","1 Zonneboiler","1 Acumulador solar","1 Solar boyler","1 szolártároló","1 накопитель гелиоустановки","1 solar cylinder","1 solaarmahuti","1 solārais rezervuārs","1 saulės energijos kaupiamasis šildytuvas","1 Solvärmeberedare","1 solbeholder","1 zasobnik solarny","1 Solární zásobník","1 Solarni spremnik","1 Solárny zásobník","1 Boiler solar","1 Solarni vsebnik","1 solarni rezervoar","1 Acumulador solar","1 Соларен резервоар","1 Aurinkoenergian varaaja","1 rezervuar diellor","1 соларен резервоар","솔라 실린더 1개","1 太阳能储水罐","1 個太陽能儲存裝置","1 خزان شمسي","1 ηλιακός ταμιευτήρας"]
["2 Геліонакопичувач","2 Solarspeicher","2 Геліонакопичувач","2 ballons solaires","2 Bollitore solare","2 Solvarmebeholder","2 Zonneboiler","2 Acumulador solar","2 Solar boyler","2 szolártároló","2 накопитель гелиоустановки","2 solar cylinders","2 solaarmahutit","2 solārie rezervuāri","2 saulės energijos kaupiamasis šildytuvas","2 Solvärmeberedare","2 solbeholder","2 zasobniki solarne","2 Solární zásobník","2 Solarni spremnik","2 Solárny zásobník","2 Boiler solar","2 Solarni vsebnik","2 solarna rezervoara","2 Acumulador solar","2 Соларен резервоар","2 Aurinkoenergian varaaja","2 rezervuarë diellorë","2 соларен резервоар","솔라 실린더 2개","2 太阳能储水罐","2 個太陽能儲存裝置","2 خزان شمسي","2 ηλιακοί ταμιευτήρες"]
[]
[{"$f":"INDEX($B$5:$AH$101,ROW()-ROW($A$4),$B$2)","v":"Індикація налаштування регулятора і розташування підключень"},"Reglereinstellung und Anschlussbelegung anzeigen","Індикація налаштування регулятора і розташування підключень","Voir réglages régulateur et raccordement","Visualizza impostazione centralina e assegnamento di connessione","Vis styringsindstilling og tilslutningskonfiguration","Regelaarinstelling en aansluitbezetting weergeven","Mostrar ajuste del regulador y asignación de conexiones","Regler ayarının ve bağlantı atamasının görüntülenmesi","Szabályozó beállítása és csatlakozófoglaltság megjelenítése","Показать настройки регулятора и назначение контактов","Show controller settings and terminal connections","Kuva regulaatori seadistus ja ühenduste jaotus","Rādīt regulatora iestatījumu un pieslēguma pakārtojumu","Reguliatoriaus nustatymo ir jungčių priskirties rodymas","Visa reglerarinställning och anslutningsbeläggning","Vis regulatorinnstilling og tilkoblingstilordning","Wyświetlić ustawienie regulatora i przyporządkowanie pinów","Zobrazení nastavení regulátoru a obsazení přípojek","Prikaz postavke regulatora i označavanja priključka","Zobrazenie nastavenia regulátora a obsadenie prípojok","Afişarea setării regulatorului şi a repartizării racordurilor","Prikaz nastavitve regulatorja in razporeditve priključkov","Prikazi podešavanja regulatora i konfiguracije priključaka","Indicar regulação do regulador e ocupação das ligações","Показване на настройката на регулатора и заемането на портовете","Säätimen asetusten ja liitäntäjärjestyksen näyttö","Shfaqni cilësimin e rregullatorit dhe konfigurimin e lidhjes","Прикажување на поставката за регулаторот и поставување на приклучоци","조절기 설정 내역 및 단자 배열 표시하기","显示控制器设置和接口分布","顯示調節器設定和連接配置","عرض وضع ضبط المنظم ومخطط التوصيل","Εμφάνιση ρύθμισης ελεγκτή και αντιστοίχισης σύνδεσης"]
["Схема системи","Systemschema","Схема системи","Schéma système","Schema del sistema","Systemskema","Systeemschema","Esquema del sistema","Sistem şeması","Rendszervázlat","Схема системы","System diagram","Süsteemiskeem","Sistēmas shēma","Sistemos schema","Systemschema","Systemskjema","Schemat systemu","Schéma systému","Shema sustava","Schéma systému","Schema sistemului","Shema sistema","Šema sistema","Esquema do sistema","Схема на системата","Järjestelmäkaavio","Skema e sistemit","Системска шема","시스템 다이어그램","系统图","系統圖","مخطط النظام","Σχεδιάγραμμα συστήματος"]
["Конфігурація VR 70","VR 70 Konfiguration","Конфігурація VR 70","Configuration VR 70","Configurazione VR 70","VR 70 konfiguration","VR 70 configuratie","Configuración VR 70","VR 70 konfigürasyonu","VR 70 konfiguráció","Конфигурация VR 70","VR 70 configuration","VR 70 konfiguratsioon","VR 70 konfigurācija","VR 70 konfigūracija","VR 70 Konfiguration","VR 70-konfigurasjon","Konfiguracja VR 70","Konfigurace VR 70","VR 70 konfiguracija","VR 70 konfigurácia","Configurarea VR 70","Konfiguracija VR 70","VR 70 konfiguracija","Configuração VR 70","VR 70 конфигурация","VR 70:n konfiguraatio","Konfigurimi VR 70","VR 70 конфигурација","VR 70 컨피규레이션","VR 70 配置","VR 70 配置","تهيئة موديول VR 70‏","Διαμόρφωση VR 70"]
["без VR 70","kein VR 70","без VR 70","pas de VR 70","nessuna VR 70","Ingen VR 70","Geen VR 70","sin VR 70","VR 70 yok","nincs VR 70","без VR 70","no VR 70","VR 70 puudub","nav VR 70","nėra VR 70","ingen VR 70","Ingen VR 70","brak VR 70","Žádné VR 70","nema VR 70","Žiaden VR 70","fără VR 70","brez VR 70","ne VR 70","sem VR 70","няма VR 70","Ei VR 70:tä","pa VR 70","нема VR 70","VR 70 없음","无 VR 70","無 VR 70","لا يوجد موديول VR 70‏","Όχι VR 70"]
["VR 70 не потрібний","VR 70 nicht nötig","VR 70 не потрібний","VR 70 pas nécessaire","VR 70 non necessaria","VR 70 ikke nødvendig","VR 70 niet nodig","VR 70 no necesario","VR 70 gerekli değil","VR 70 nem szükséges","VR 70 не требуется","VR 70 not necessary","VR 70 pole vajalik","VR 70 nav nepieciešams","VR 70 nereikia","VR 70 ej nödvändig","VR 70 ikke nødvendig","VR 70 niepotrzebny","VR 70 není nutné","VR 70 nije potrebno","VR 70 nie je potrebný","VR 70 nu este necesar","VR 70 ni potreben","VR 70 nije potrebno","VR 70 não necessário","VR 70 не е нужно","VR 70 ei tarpeen","VR 70 nuk është i nevojshëm","VR 70 не е потребен","VR 70 필요하지 않음","VR 70 不需要","無需 VR 70","لا يلزم موديول VR 70‏","Δεν απαιτείται VR 70"]
["1 x VR 70","1 x VR 70","1 x VR 70","1 x VR 70","1 x VR 70","1 x VR 70","1 x VR 70","1 x VR 70","1 x VR 70","1 x VR 70","1 x VR 70","1 x VR 70","1 x VR 70","1 x VR 70","1 x VR 70","1 x VR 70","1 x VR 70","1 x VR 70","1 x VR 70","1 x VR 70","1 x VR 70","1 x VR 70","1 x VR 70","1 x VR 70","1 x VR 70","1 x VR 70","1 x VR 70","1 x VR 70","1 x VR 70","1 x VR 70","1 x VR 70","1 x VR 70","1 x VR 70","1 x VR 70"]
["2 x VR 70","2 x VR 70","2 x VR 70","2 x VR 70","2 x VR 70","2 x VR 70","2 x VR 70","2 x VR 70","2 x VR 70","2 x VR 70","2 x VR 70","2 x VR 70","2 x VR 70","2 x VR 70","2 x VR 70","2 x VR 70","2 x VR 70","2 x VR 70","2 x VR 70","2 x VR 70","2 x VR 70","2 x VR 70","2 x VR 70","2 x VR 70","2 x VR 70","2 x VR 70","2 x VR 70","2 x VR 70","2 x VR 70","2 x VR 70","2 x VR 70","2 x VR 70","2 x VR 70","2 x VR 70"]
["3 x VR 70","3 x VR 70","3 x VR 70","3 x VR 70","3 x VR 70","3 x VR 70","3 x VR 70","3 x VR 70","3 x VR 70","3 x VR 70","3 x VR 70","3 x VR 70","3 x VR 70","3 x VR 70","3 x VR 70","3 x VR 70","3 x VR 70","3 x VR 70","3 x VR 70","3 x VR 70","3 x VR 70","3 x VR 70","3 x VR 70","3 x VR 70","3 x VR 70","3 x VR 70","3 x VR 70","3 x VR 70","3 x VR 70","3 x VR 70","3 x VR 70","3 x VR 70","3 x VR 70","3 x VR 70"]
["Конфігурація VR 71","VR 71 Konfiguration","Конфігурація VR 71","Configuration VR 71","Configurazione VR 71","VR 71 konfiguration","VR 71 configuratie","Configuración VR 71","VR 71 konfigürasyonu","VR 71 konfiguráció","Конфигурация VR 71","VR 71 configuration","VR 71 konfiguratsioon","VR 71 konfigurācija","VR 71 konfigūracija","VR 71 Konfiguration","VR 71-konfigurasjon","Konfiguracja VR 71","Konfigurace VR 71","VR 71 konfiguracija","VR 71 konfigurácia","Configurarea VR 71","Konfiguracija VR 71","VR 71 konfiguracija","Configuração VR 71","VR 71 конфигурация","VR 71:n konfiguraatio","Konfigurimi VR 71","VR 71 конфигурација","VR 71 컨피규레이션","VR 71 配置","VR 71 配置","تهيئة موديول VR 71‏","Διαμόρφωση VR 71"]
["без VR 71","kein VR 71","без VR 71","pas de VR 71","nessuna VR 71","Ingen VR 71","Geen VR 71","sin VR 71","VR 71 yok","nincs VR 71","без VR 71","no VR 71","VR 71 puudub","nav VR 71","nėra VR 71","ingen VR 71","Ingen VR 71","brak VR 71","Žádné VR 71","nema VR 71","Žiaden VR 71","fără VR 71","brez VR 71","ne VR 71","sem VR 71","няма VR 71","Ei VR 71:tä","pa VR 71","нема VR 71","VR 71 없음","无 VR 71","無 VR 71","لا يوجد موديول VR 71‏","Όχι VR 71"]
["VR 71 не потрібний","VR 71 nicht nötig","VR 71 не потрібний","VR 71 pas nécessaire","VR 71 non necessaria","VR 71 ikke nødvendig","VR 71 niet nodig","VR 71 no necesario","VR 71 gerekli değil","VR 71 nem szükséges","VR 71 не требуется","VR 71 not necessary","VR 71 pole vajalik","VR 71 nav nepieciešams","VR 71 nereikia","VR 71 ej nödvändig","VR 71 ikke nødvendig","VR 71 niepotrzebny","VR 71 není nutné","VR 71 nije potrebno","VR 71 nie je potrebný","VR 71 nu este necesar","VR 71 ni potreben","VR 71 nije potrebno","VR 71 não necessário","VR 71 не е нужно","VR 71 ei tarpeen","VR 71 nuk është i nevojshëm","VR 71 не е потребен","VR 71 필요하지 않음","VR 71 不需要","無需 VR 71","لا يلزم موديول VR 71‏","Δεν απαιτείται VR 71"]
["*Регулятор виконує регулювання завантаження накопичувача для теплового насоса у нижній ділянці накопичувача гарячої води. Опалювальний прилад отримує від регулятора дозвіл для верхньої ділянки накопичувача і самостійно регулює завантаження накопичувача цієї ділянки. Це також означає, що до опалювального приладу повинен бути підключений датчик температури накопичувача.","*Der Regler übernimmt die Regelung der Speicherladung für die Wärmepumpe im unteren Teil des Warmwasserspeichers. Das Heizgerät bekommt für den oberen Teil des Speichers eine Freigabe vom Regler und regelt die Speicherladung dieses Teils selbst. Dies bedeutet auch, dass ein Speicherfühler am Heizgerät angeschlossen werden muss.","*Регулятор виконує регулювання завантаження накопичувача для теплового насоса у нижній ділянці накопичувача гарячої води. Опалювальний прилад отримує від регулятора дозвіл для верхньої ділянки накопичувача і самостійно регулює завантаження накопичувача цієї ділянки. Це також означає, що до опалювального приладу повинен бути підключений датчик температури накопичувача.","* La régulation gère la charge ECS par la pompe à chaleur dans la partie inférieure du ballon ECS. Le mode ECS de la chaudière permet  la charge de la partie supérieure du ballon et, est géré par le régulateur VRC. La chaudière règlule alors uniquement sur sa propre partie ECS. Cela signifie qu'une sonde ECS doit être connecté à la chaudière.","*La centralina si occupa di regolare la carica del bollitore per la pompa di calore nella parte inferiore del bollitore. L'apparecchio di riscaldamento riceve un consenso dalla centralina per la parte superiore del bollitore e regola la carica di questa parte. Ciò significa anche che all'apparecchio di riscaldamento deve essere collegato un sensore per boiler.","*Styringen overtager styring af beholderopvarmning for varmepumpen i den nederste del af varmtvandsbeholderen. Kedlen får for den øverste del af beholderen en frigivelse fra styringen og styrer selv beholderopvarmningen af denne del. Det betyder også, at der skal tilsluttes en beholderføler på kedlen.","*De thermostaat verzorgt de regeling van de boilerlading voor de warmtepomp in het onderste deel van de warmwaterboiler. Het CV-toestel krijgt voor het bovenste deel van de boiler een vrijgave van de thermostaat en regels de boilerlading van dit deel zelf. Dit betekent ook, dat een boilersensor op het CV-toestel moet worden aangesloten.","*El regulador realiza la regulación de la carga del acumulador para la bomba de calor en la parte inferior del acumulador de agua caliente sanitaria. Para la parte superior del acumulador, la caldera obtiene una activación del regulador y regula de forma autónoma la carga del acumulador de esta parte. Esto supone también que es necesario conectar una sonda de acumulador a la caldera.","*Regler, sıcak su boylerinin alt parçasındaki ısı pompasına yönelik boyler doldurmanın ayarlamasını devralır. Isıtma cihazı, boylerin üst kısmı için reglerden onay alır ve bu parçanın boyler doldurmasını kendisi ayarlar. Bu ayrıca ısıtma cihazına bir boyler sensörü bağlanmasının gerektiği anlamına gelir.","*A szabályozó átveszi a hőszivattyú tárolótöltésének szabályozását a melegvíztároló alsó részében. A tároló felső részéhez a fűtőkészülék a szabályozótól kap engedélyezést és automatikusan szabályozza ennek a résznek a tárolótöltését. Ez azt is jelenti, hogy a fűtőkészülékre csatlakoztatni kell egy tárolóhőmérséklet-érzékelőt.","*Регулятор берет на себя регулирование нагрева накопителя для теплового насоса в нижней части накопителя горячей воды. Отопительный аппарат получает от регулятора разрешение для верхней части накопителя и самостоятельно регулирует нагрев этой части накопителя. Из этого также следует, что к отопительному аппарату должен быть подключен датчик накопителя.","* The control regulates the cylinder charging for the heat pump in the lower part of the DHW cylinder. The boiler operation for DHW for the upper part of the cylinder is released by the control. The boiler then regulates the cylinder charging of this part itself. That means that a cylinder sensor must be connected to the boiler.","*Regulaator võtab soojuspumbalt üle mahuti laadimise reguleerimise sooja vee mahuti alumises osas. Regulaator aktiveerib mahuti ülemise osa jaoks kütteseadme ja kütteseade reguleerib mahuti selle osa laadimist ise. See tähendab ühtlasi, et mahuti andur peab olema kütteseadme külge ühendatud.","*Regulators uzņemas boilera uzpildes regulēšanu siltumsūknim karstā ūdens boilera apakšējā daļā. Sildierīce saņem no regulatora atļauju boilera augšējai daļai un regulē šīs daļas boilera uzpildi pati. Tas nozīmē arī to, ka pie sildierīces jābūt pieslēgtam boilera sensoram.","*Reguliatorius perima kaupiamojo šildytuvo pripildymo reguliavimą šilumos siurbliui apatinėje karšto vandens kaupiamojo šildytuvo dalyje. Šildytuvas viršutinei kaupiamojo šildytuvo daliai gauna iš reguliatoriaus atblokavimo leidimą ir šios dalies kaupiamojo šildytuvo pripildymą reguliuoja pats. Tai taip pat reiškia, kad kaupiamojo šildytuvo jutiklį reikia prijungti prie šildytuvo.","*Regleraren övertar regleringen av beredarens laddning för värmepumpen i varmvattenberedarens nedre del. Värmeaggregatet får frigivning för ackumulatorns övre del av regleraren och reglerar beredarens laddning själv. Det betyder också att en VVB-givare måste anslutas till värmeaggregatet.","*Regulatoren overtar reguleringen av tankladingen for varmepumpen i nedre del av varmtvannstanken. Varmeapparatet får en frigivelse fra regulatoren for øvre del av tanken, og regulerer tankladingen for denne delen på egen hånd. Dette betyr også at det må kobles en tankføler til varmeapparatet.","*Regulator steruje ładowaniem zasobnika pompy ciepła w dolnej części zasobnika c.w.u. Kocioł grzewczy otrzymuje z regulatora sygnał zwolnienia górnej części zasobnika i samodzielnie reguluje ładowanie zasobnika tej części. To oznacza również, że należy podłączyć czujnik temperatury zasobnika kotła grzewczego.","*Regulátor přebírá řízení nabíjení zásobníku pro tepelné čerpadlo v dolní části zásobníku teplé vody. Kotel k vytápění je regulátorem aktivován pro horní část zásobníku a samostatně řídí nabíjení zásobníku této části. To také znamená, že musí být připojeno teplotní čidlo zásobníku na kotli.","*Regulator preuzima regulaciju punjenja spremnika za dizalicu topline u donjem dijelu spremnika tople vode. Uređaj za grijanje za gornji dio spremnika dobiva odobrenje od regulatora i regulira sam punjenje ovog dijela spremnika. To također znači da na uređaju za grijanje mora biti priključen osjetnik temperature spremnika.","*Regulátor prevezme reguláciu nabíjania zásobníka pre tepelné čerpadlo v dolnej časti zásobníka teplej vody. Vyhrievacie zariadenie dostane od regulátora povolenie pre hornú časť zásobníka a samo reguluje nabíjanie zásobníka tejto časti. Znamená to tiež, že snímač zásobníka sa musí pripojiť na vyhrievacie zariadenie.","*Regulatorul preia reglarea încărcării acumulatorului pentru pompa de încălzire din partea inferioară a boilerului pentru apă caldă menajeră. Aparatul de încălzire primeşte pentru partea superioară a boilerului o validare din partea regulatorului şi reglează independent încărcarea boilerului acestei părţi. Acest lucru înseamnă, de asemenea, că un senzor de temperatură al boilerului trebuie să fie conectat la aparatul de încălzire.","*Regulator prevzame regulacijo polnjenja zalogovnika za toplotno črpalko v spodnjem delu zalogovnika tople vode. Ogrevalna naprava za zgornji del zalogovnika dobi odobritev regulatorja in sama regulira polnjenje zalogovnika v tem delu. To pomeni tudi, da mora biti na ogrevalno napravo priključen temperaturni senzor zalogovnika.","*Regulator preuzima regulaciju punjenja rezervoara za toplotnu pumpu u donjem delu rezervoara za toplu vodu. Uređaj za grejanje dobija odobrenje od regulatora za gornji deo rezervoara i samostalno reguliše punjenje rezervoara ovog dela. To znači da se senzor temperature rezervoara mora priključiti na uređaj za grejanje.","*O regulador assume a regulação da carga do acumulador para a bomba de calor na parte inferior do acumulador de água quente sanitária. O aquecedor recebe uma ativação do regulador para a parte superior do acumulador e regula a carga do acumulador desta parte. Isto significa também que tem de ser ligado um sensor do acumulador no aquecedor.","*Регулаторът поема регулирането на нагряването на водосъдържателя за топлинната помпа в долната част на резервоара за топла вода. Отоплителният уред получава за горната част на водосъдържателя разрешение от регулатора и регулира нагряването на водосъдържателя за тази част самостоятелно. Това означава, че към отоплителния уред трябва да се свърже датчик на температурата на водосъдържателя.","*Säädin vastaa lämpöpumpun varaajan varauksen säädöstä lämminvesivaraajan alaosassa. Lämmityslaite saa säätimeltä varaajan yläosaa koskevan luvan ja säätää itse tämän osan varaajan varausta. Tämä tarkoittaa myös sitä, että lämmityslaitteeseen on liitettävä varaajan anturi.","*Rregullatori kryen rregullimin e ngarkimit të rezervuarit për pompën e ngrohjes në pjesën e brendshme të rezervuarit të ujit të ngrohtë. Pajisja ngrohëse merr një konfirmim nga rregullatori për pjesën e sipërme të rezervuarit dhe rregullon ngarkimin e rezervuarit të kësaj pjese. Kjo do të thotë edhe se duhet lidhur sensori i rezervuarit në pajisjen ngrohëse.","*Регулаторот го презема регулирањето на полнењето на резервоарот за топлинската пумпа во долниот дел на резервоарот за топла вода. Грејниот уред добива одобрување од регулаторот за горниот дел на резервоарот и самостојно го регулира полнењето на резервоарот во овој дел. Ова исто така значи дека сензорот за резервоар мора да е приклучен на грејниот уред.","*조절기는 온수 저장 탱크 하부에 위치한 히트 펌프를 제어하는 역할을 합니다. 보일러는 조절기로부터 실린더 상부에 대한 작동 승인을 받고, 이 부분의 실린더 충진을 스스로 제어합니다. 이는 실린더 센서가 보일러에 연결되어 있어야 함을 의미합니다.","*控制器负责控制热水储水罐下部热泵的储水罐加热情况。加热装置从控制器获取针对储水罐上部的许可并自行控制该部分的储水罐加热情况。这也意味着必须将储水罐传感器连接到加热装置上。","*調節器負責調節熱水儲存裝置下方區域的加熱幫浦儲存裝置負載。暖器會從調節器取得儲存裝置上方部位的放行，然後自行調節該部位的儲存裝置負載。這也表示，儲存裝置感應器必須連接在暖器上。","*يتولى المنظم عملية التحكم في شحن الخزان للمضخة الحرارية في الجزء السفلي من خزان الماء الساخن. يتلقى السخان إتاحة من المنظم للجزء العلوي من الخزان ويقوم بالتحكم في عملية شحن الخزان ذاتياً. وهذا يعني أيضاً، أنه يجب توصيل مستشعر خزان بالسخان.","*Ο ελεγκτής αναλαμβάνει τη ρύθμιση της φόρτισης ταμιευτήρα για την αντλία θερμότητας στο κάτω τμήμα του ταμιευτήρα ζεστού νερού. Η συσκευή θέρμανσης λαμβάνει για το επάνω τμήμα του ταμιευτήρα μια έγκριση από τον ελεγκτή και ρυθμίζει η ίδια τη φόρτιση ταμιευτήρα αυτού του τμήματος. Αυτό σημαίνει επίσης ότι πρέπει να συνδεθεί ένας αισθητήρας ταμιευτήρα στη συσκευή θέρμανσης."]
["* 11 = для додаткового нагрівання потрібен насос теплового насоса/\n   16 = для додаткового нагрівання потрібен насос модуля WT","* 11 = Zusatzheizung benötigt Pumpe der Wärmepumpe /\n   16 = Zusatzheizung benötigt Pumpe von WT-Modul","* 11 = для додаткового нагрівання потрібен насос теплового насоса/\n   16 = для додаткового нагрівання потрібен насос модуля WT","* 11 = Additional heater needs pump of the heat pump /\n   16 = Additional heater needs pump of the heat exch. module","* 11 = Riscaldamento supplementare richiede la pompa della pompa di calore /\n   16 = Riscaldamento supplementare richiede la pompa del modulo WT","* 11 = supplerende varme har brug for varmepumpens pumpe /\n  16 = supplerende varmegiver har brug for pumpe fra WT-modul","* 11 = hulpverwarming heeft pomp warmtepomp nodig /\n   16 = hulpverwarming heeft pomp WT-module nodig","* 11 = apoyo externo necesita bomba de la bomba de calor /\n   16 = apoyo externo necesita bomba de módulo WT","* 11 = Takviye ısıtıcı için ısı pompasının pompası gerekir /\n   16 = Takviye ısıtıcı için WT modülünün pompası gerekir","* 11 = a kiegészítő fűtéshez a hőszivattyú szivattyújára van szükség /\n   16 = a kiegészítő fűtéshez a WT modul szivattyújára van szükség","* 11 = Для дополнительного догрева требуется насос теплового насоса /\n   16 = Для дополнительного догрева требуется насос модуля WT","* 11 = Additional heater needs pump of the heat pump /\n   16 = Additional heater needs pump of the heat exch. module","* 11 = lisakütet nõuab soojuspumba pump /\n   16 = lisakütet nõuab WT-mooduli pump","* 11 = papildu apkurei ir nepieciešams siltumsūkņa sūknis /\n   16 = papildu apkurei ir nepieciešams WT moduļa sūknis","* 11 = papildomo šildymo reikia šilumos siurblio siurbliui /\n   16 = papildomo šildymo reikia šilumokaičio modulio siurbliui","* 11 = Tillsatsvärme behöver värmepumpens pump /\n   16 = Tillsatsvärme behöver pumpen till WT-modulen","* 11 = Tilleggsvarmer trenger pumpe fra varmepumpen /\n   16 = Tilleggsvarmer trenger pumpe fra varmevekslermodul","* 11 = ogrzewanie dodatkowe wymaga pompy z pompy ciepła /\n   16 = ogrzewanie dodatkowe wymaga pompy modułu wymiennika ciepła","* 11 = přídavné topení vyžaduje čerpadlo tepelného čerpadla /\n   16 = přídavné topení vyžaduje čerpadlo modulu WT","* 11 = dodatno grijanje treba crpku dizalice topline /\n   16 = dodatno grijanje treba crpku modula izmjenjivača topline","* 11 = prídavný ohrev potrebuje čerpadlo tepelného čerpadla/\n   16 = prídavný ohrev potrebuje čerpadlo WT modulu","* 11 = Încălzirea suplimentară necesită pompa de încălzire/\n   16 = Încălzirea suplimentară necesită pompa modulului de schimb de căldură","* 11 = dodatni grelnik potrebuje črpalko toplotne črpalke /\n   16 = dodatni grelnik potrebuje črpalko modula toplotnega izmenjevalnika","* 11 = dodatnom grejanju je potrebna pumpa toplotne pumpe /\n   16 = dodatnom grejanju je potrebna pumpa modula izmenjivača toplote","* 11 = Aquecimento adicional necessita da bomba da bomba de calor /\n   16 = Aquecimento adicional necessita da bomba do módulo WT","* 11 = Допълнителното отопление се нуждае от помпата на топлинната помпа /\n   16 = Допълнителното отопление се нуждае от помпата на WT модула","* 11 = Lisälämmitys tarvitsee lämpöpumpun pumppua /\n   16 = Lisälämmitys tarvitsee lämmönvaihdinmoduulin pumppua","* 11 = Ngrohja shtesë ka nevojë për pompën e pompës së ngrohjes /\n   16 = Ngrohja shtesë ka nevojë për pompën e modulit WT","* 11 = За дополнителното греење е потребна пумпа од грејната пумпа /\n   16 = За дополнителното греење е потребна пумпа од модулот за ТИ","* 11 = 보조 보일러는 히트 펌프의 펌프를 필요로 함 /\n   16 = 보조 보일러는 WT 모듈의 펌프를 필요로 함","* 11 = 辅助加热装置需要热泵的泵 /\n   16 = 辅助加热装置需要 WT 模块的泵","* 11 = 輔助暖器需要加熱幫浦的幫浦 /\n   16 = 輔助暖器需要 WT 模組的幫浦","* 11 = يحتاج التسخين الإضافي إلى مضخة المضخة الحرارية /\n   16 = يحتاج التسخين الإضافي إلى مضخة من موديول WT","* 11 = το πρόσθετο σύστημα θέρμανσης χρειάζεται την αντλία της αντλίας θερμότητας /\n   16 = το πρόσθετο σύστημα θέρμανσης χρειάζεται την αντλία της μονάδας WT"]
[]
[{"$f":"INDEX($B$5:$AH$101,ROW()-ROW($A$4),$B$2)","v":"ТІЛЬКИ ДЛЯ ВНУТРІШНЬОГО ВИКОРИСТАННЯ"},"NUR ZUM INTERNEN GEBRAUCH","ТІЛЬКИ ДЛЯ ВНУТРІШНЬОГО ВИКОРИСТАННЯ","USAGE INTERNE UNIQUEMENT","SOLO PER UTILIZZO INTERNO","KUN TIL INTERN BRUG","ALLEEN VOOR INTERN GEBRUIK","SOLO PARA USO INTERNO","SADECE DAHİLİ KULLANIM İÇİN","CSAK BELSŐ HASZNÁLATRA","ТОЛЬКО ДЛЯ ВНУТРЕННЕГО ПРИМЕНЕНИЯ","FOR INTERNAL USE ONLY","AINULT SISEKASUTAMISEKS","TIKAI IEKŠĒJAI LIETOŠANAI","TIK VIDINIAM NAUDOJIMUI","ENDAST FÖR INTERNT BRUK","BARE TIL INTERN BRUK","TYLKO DO UŻYTKU WEWNĘTRZNEGO","POUZE K INTERNÍMU POUŽITÍ","SAMO ZA UNUTARNJU UPORABU","LEN NA INTERNÉ POUŽITIE","NUMAI PENTRU UTILIZAREA INTERIOARĂ","SAMO ZA NOTRANJO UPORABO","SAMO ZA INTERNU UPOTREBU","APENAS PARA UTILIZAÇÃO INTERNA","САМО ЗА ВЪТРЕШНА УПОТРЕБА","VAIN SISÄISEEN KÄYTTÖÖN","VETËM PËR PËRDORIM NË KUSHTE TË BRENDSHME","САМО ЗА ИНТЕРНА УПОТРЕБА","내부 사용 용도로만","仅供内部使用","僅限內部使用","فقط للاستخدام الداخلي","ΜΟΝΟ ΓΙΑ ΕΣΩΤΕΡΙΚΗ ΧΡΗΣΗ"]
[{"$f":"INDEX($B$5:$AH$101,ROW()-ROW($A$4),$B$2)","v":"Розташування підключень VR 71"},"Anschlussbelegung VR 71","Розташування підключень VR 71","Raccordements VR 71","Assegnamento di connessione VR 71","Tilslutningskonfiguration VR 71","Aansluitbezetting VR 71","Asignación de conexiones VR 71","Bağlantı ataması VR 71","VR 71 csatlakozófoglaltsága","Назначение контактов VR 71","Terminal connection VR 71","Ühenduste jaotus VR 71","VR 71 pieslēguma pakārtojums","VR 71 jungčių priskirtis","Anslutningsbeläggning VR 71","Tilkoblingstilordning VR 71","Przyporządkowanie pinów VR 71","Obsazení přípojek VR 71","Označavanje priključka VR 71","Obsadenie prípojok VR 71","Repartizarea racordurilor VR 71","Razporeditev priključkov VR 71","Konfiguracija priključaka VR 71","Ocupação das ligações VR 71","Заемане на порт VR 71","Liitäntäjärjestys VR 71","Konfigurimi i lidhjes VR 71","Поставување на приклучоци VR 71","VR 71 단자 배열","VR 71 接口分布","連接配置 VR 71","مخطط توصيل موديول VR 71‏","Αντιστοίχιση σύνδεσης VR 71"]
[{"$f":"INDEX($B$5:$AH$101,ROW()-ROW($A$4),$B$2)","v":"Розташування підключень VR 70, адреса 1"},"Anschlussbelegung VR 70 Adresse 1","Розташування підключень VR 70, адреса 1","Raccordements VR 70 adresse 1","Assegnamento di connessione VR 70 indirizzo 1","Tilslutningskonfiguration VR 70 adresse 1","Aansluitbezetting VR 70 adres 1","Asignación de conexiones VR 70 dirección 1","Bağlantı ataması VR 70 Adres 1","VR 70 1. cím csatlakozófoglaltsága","Назначение контактов VR 70, адрес 1","Terminal connection VR 70 address 1","Ühenduste jaotus VR 70 aadressil 1","VR 70 1. adreses pieslēguma pakārtojums","VR 70 jungčių priskirtis, 1 adresas","Anslutningsbeläggning VR 70 adress 1","Tilkoblingstilordning VR 70 adresse 1","Przyporządkowanie pinów VR 70 adres 1","Obsazení přípojek VR 70 adresa 1","Označavanje priključka VR 70 adresa 1","Obsadenie prípojok VR 70 adresa 1","Repartizarea racordurilor VR 70, adresa 1","Razporeditev priključkov VR 70 naslov 1","Konfiguracija priključaka VR 70 adresa 1","Ocupação das ligações VR 70 endereço 1","Заемане на порт VR 70 адрес 1","Liitäntäjärjestys VR 70 osoite 1","Konfigurimi i lidhjes VR 70 Adresa 1","Поставување на приклучоци VR 70 адреса 1","VR 70 단자 배열 주소 1","VR 70 地址 1 接口分布","連接配置 VR 70 位址 1","مخطط توصيل موديول VR 70 عنوان 1‏","Αντιστοίχιση σύνδεσης VR 70 διεύθυνση 1"]
[{"$f":"INDEX($B$5:$AH$101,ROW()-ROW($A$4),$B$2)","v":"Розташування підключень VR 70, адреса 2"},"Anschlussbelegung VR 70 Adresse 2","Розташування підключень VR 70, адреса 2","Raccordements VR 70 adresse 2","Assegnamento di connessione VR 70 indirizzo 2","Tilslutningskonfiguration VR 70 adresse 2","Aansluitbezetting VR 70 adres 2","Asignación de conexiones VR 70 dirección 2","Bağlantı ataması VR 70 Adres 2","VR 70 2. cím csatlakozófoglaltsága","Назначение контактов VR 70, адрес 2","Terminal connection VR 70 address 2","Ühenduste jaotus VR 70 aadressil 2","VR 70 2. adreses pieslēguma pakārtojums","VR 70 jungčių priskirtis, 2 adresas","Anslutningsbeläggning VR 70 adress 2","Tilkoblingstilordning VR 70 adresse 2","Przyporządkowanie pinów VR 70 adres 2","Obsazení přípojek VR 70 adresa 2","Označavanje priključka VR 70 adresa 2","Obsadenie prípojok VR 70 adresa 2","Repartizarea racordurilor VR 70, adresa 2","Razporeditev priključkov VR 70 naslov 2","Konfiguracija priključaka VR 70 adresa 2","Ocupação das ligações VR 70 endereço 2","Заемане на порт VR 70 адрес 2","Liitäntäjärjestys VR 70 osoite 2","Konfigurimi i lidhjes VR 70 Adresa 2","Поставување на приклучоци VR 70 адреса 2","VR 70 단자 배열 주소 2","VR 70 地址 2 接口分布","連接配置 VR 70 位址 2","مخطط توصيل موديول VR 70 عنوان 2‏","Αντιστοίχιση σύνδεσης VR 70 διεύθυνση 2"]
[{"$f":"INDEX($B$5:$AH$104,ROW()-ROW($A$4),$B$2)","v":"Розташування підключень VR 70, адреса 3"},"Anschlussbelegung VR 70 Adresse 3","Розташування підключень VR 70, адреса 3","Raccordements VR 70 adresse 3","Assegnamento di connessione VR 70 indirizzo 3","Tilslutningskonfiguration VR 70 adresse 3","Aansluitbezetting VR 70 adres 3","Asignación de conexiones VR 70 dirección 3","Bağlantı ataması VR 70 Adres 3","VR 70 3. cím csatlakozófoglaltsága","Назначение контактов VR 70, адрес 3","Terminal connection VR 70 address 3","Ühenduste jaotus VR 70 aadressil 3","VR 70 3. adreses pieslēguma pakārtojums","VR 70 jungčių priskirtis, 3 adresas","Anslutningsbeläggning VR 70 adress 3","Tilkoblingstilordning VR 70 adresse 3","Przyporządkowanie pinów VR 70 adres 3","Obsazení přípojek VR 70 adresa 3","Označavanje priključka VR 70 adresa 3","Obsadenie prípojok VR 70 adresa 3","Repartizarea racordurilor VR 70, adresa 3","Razporeditev priključkov VR 70 naslov 3","Konfiguracija priključaka VR 70 adresa 3","Ocupação das ligações VR 70 endereço 3","Заемане на порт VR 70 адрес 3","Liitäntäjärjestys VR 70 osoite 3","Konfigurimi i lidhjes VR 70 Adresa 3","Поставување на приклучоци VR 70 адреса 3","VR 70 단자 배열 주소 3","VR 70 地址 3 接口分布","連接配置 VR 70 位址 3","مخطط توصيل موديول VR 70 عنوان 3‏","Αντιστοίχιση σύνδεσης VR 70 διεύθυνση 3"]
[]
[{"$f":"INDEX($B$5:$AH$104,ROW()-ROW($A$4),$B$2)","v":"Конфігурація"},"Konfiguration","Конфігурація","Configuration","Configurazione","Konfiguration","Configuratie","Configuración","Konfigürasyonu","Konfiguráció","Конфигурация","Configuration","Konfiguratsioon","Konfigurācija","Konfigūracija","Konfiguration","Konfigurasjon","Konfiguracja","Konfigurace","Konfiguracija","Konfigurácia","Configurarea","Konfiguracija","Konfiguracija","Configuração","конфигурация","n konfiguraatio","Konfigurimi VR 71","конфигурација","컨피규레이션","配置","配置","تهيئة موديول","Διαμόρφωση"]
[{"$f":"INDEX($B$5:$AH$104,ROW()-ROW($A$4),$B$2)","v":"легенда"},"Legende","легенда","Légende","Leggenda","Legende","Legende","Leyenda","Lejant","Legenda","легенда","Legend","Legende","Leģenda","Legenda","Legende","Legende","Legenda","Legenda","Legenda","Legenda","Legendă","Legenda","Legenda","Lenda","легенда","Legenda","Legenda","легенда","전설","传说","傳說","أسطورة","θρύλος"]